Workbook

Sheet ＴＯＰ
E6: 弥生会計の残高試算表（月次・期間）のエクスポートしたデータを取り込みます
E8: 会社の基本データ（会社名、会計期間）を表示、修正します
E10: 第十五号様式（貸借対照表）を表示、修正、印刷します
E12: 第十六号様式（損益計算書・完成工事原価報告書）を表示、修正、印刷します
E14: 第十七号様式（株主資本等変動計算書）を表示、修正、印刷します
E16: 第十七号の二様式（注記表）を表示、修正、印刷します
E18: 弥生会計の勘定科目と対応する、建設業財務諸表の勘定科目を管理するマスターテーブルです
N20: 提供：小林敬幸税理士事務所

Sheet 取込データ (hidden)
A1: 帳票名 | B1: 残高試算表(月次・期間)
A2: 書式名 | B2: 汎用形式
A3: 事業所名 | B3: 株式会社 弥生トレーディング
A4: 処理日時 | B4: 平成28年05月30日 | C4: 10:42:41
A5: 月次/期間 | B5: 期間
A6: 集計期間 | B6: 平成26年04月01日 | C6: 平成27年03月31日 | D6: 決算仕訳を含む
A7: 税抜/税込 | B7: 税抜
A8: [表題行] | B8: 部門 | C8: 分類 | D8: 勘定科目 | E8: 前期繰越 | F8: 期間借方 | G8: 期間貸方 | H8: 当期残高 | I8: 構成比(対売上比)(%)
A9: [区分行] | B9: 事業所(合計) | C9: [貸借対照表] | D9: [現金･預金]
A10: [明細行] | B10: 事業所(合計) | C10: [貸借対照表] | D10: 現金 | E10: 47472293 | F10: 66930680 | G10: 57810005 | H10: 56592968 | I10: 14.25
A11: [明細行] | B11: 事業所(合計) | C11: [貸借対照表] | D11: 当座預金 | E11: 144561147 | F11: 265303329 | G11: 245487716 | H11: 164376760 | I11: 41.39
A12: [明細行] | B12: 事業所(合計) | C12: [貸借対照表] | D12: 普通預金 | E12: 51487805 | F12: 51454674 | G12: 44390628 | H12: 58551851 | I12: 14.74
A13: [明細行] | B13: 事業所(合計) | C13: [貸借対照表] | D13: 定期預金 | E13: 2060000 | F13: 8000 | G13: 0 | H13: 2068000 | I13: 0.52
A14: [合計行] | B14: 事業所(合計) | C14: [貸借対照表] | D14: 現金･預金合計 | E14: 245581245 | F14: 383696683 | G14: 347688349 | H14: 281589579 | I14: 70.9
A15: [区分行] | B15: 事業所(合計) | C15: [貸借対照表] | D15: [売上債権]
A16: [明細行] | B16: 事業所(合計) | C16: [貸借対照表] | D16: 受取手形 | E16: 4043649 | F16: 31115497 | G16: 31115497 | H16: 4043649 | I16: 1.02
A17: [明細行] | B17: 事業所(合計) | C17: [貸借対照表] | D17: 売掛金 | E17: 27446859 | F17: 272966933 | G17: 267667767 | H17: 32746025 | I17: 8.24
A18: [明細行] | B18: 事業所(合計) | C18: [貸借対照表] | D18: 貸倒引当金(売) | E18: -314905 | F18: 314905 | G18: 367902 | H18: -367902 | I18: -0.09
A19: [合計行] | B19: 事業所(合計) | C19: [貸借対照表] | D19: 売上債権合計 | E19: 31175603 | F19: 304397335 | G19: 299151166 | H19: 36421772 | I19: 9.17
A20: [区分行] | B20: 事業所(合計) | C20: [貸借対照表] | D20: [有価証券]
A21: [合計行] | B21: 事業所(合計) | C21: [貸借対照表] | D21: 有価証券合計 | E21: 0 | F21: 0 | G21: 0 | H21: 0 | I21: 0
A22: [区分行] | B22: 事業所(合計) | C22: [貸借対照表] | D22: [棚卸資産]
A23: [明細行] | B23: 事業所(合計) | C23: [貸借対照表] | D23: 商品 | E23: 24500000 | F23: 24500000 | G23: 24500000 | H23: 24500000 | I23: 6.17
A24: [明細行] | B24: 事業所(合計) | C24: [貸借対照表] | D24: 半製品 | E24: 2731000 | F24: 2731000 | G24: 2731000 | H24: 2731000 | I24: 0.69
A25: [明細行] | B25: 事業所(合計) | C25: [貸借対照表] | D25: 原材料 | E25: 456600 | F25: 456600 | G25: 456600 | H25: 456600 | I25: 0.11
A26: [明細行] | B26: 事業所(合計) | C26: [貸借対照表] | D26: 仕掛品 | E26: 240000 | F26: 240000 | G26: 240000 | H26: 240000 | I26: 0.06
A27: [合計行] | B27: 事業所(合計) | C27: [貸借対照表] | D27: 棚卸資産合計 | E27: 27927600 | F27: 27927600 | G27: 27927600 | H27: 27927600 | I27: 7.03
A28: [区分行] | B28: 事業所(合計) | C28: [貸借対照表] | D28: [他流動資産]
A29: [明細行] | B29: 事業所(合計) | C29: [貸借対照表] | D29: 立替金 | E29: 228834 | F29: 175897 | G29: 145982 | H29: 258749 | I29: 0.07
A30: [明細行] | B30: 事業所(合計) | C30: [貸借対照表] | D30: 未収収益 | E30: 300000 | F30: 0 | G30: 0 | H30: 300000 | I30: 0.08
A31: [明細行] | B31: 事業所(合計) | C31: [貸借対照表] | D31: 仮払消費税等 | E31: 0 | F31: 23456377 | G31: 23635563 | H31: -179186 | I31: -0.05
A32: [合計行] | B32: 事業所(合計) | C32: [貸借対照表] | D32: 他流動資産合計 | E32: 528834 | F32: 23632274 | G32: 23781545 | H32: 379563 | I32: 0.1
A33: [合計行] | B33: 事業所(合計) | C33: [貸借対照表] | D33: 流動資産合計 | E33: 305213282 | F33: 739653892 | G33: 698548660 | H33: 346318514 | I33: 87.19
A34: [区分行] | B34: 事業所(合計) | C34: [貸借対照表] | D34: [有形固定資産]
A35: [明細行] | B35: 事業所(合計) | C35: [貸借対照表] | D35: 建物 | E35: 19561200 | F35: 0 | G35: 518400 | H35: 19042800 | I35: 4.79
A36: [明細行] | B36: 事業所(合計) | C36: [貸借対照表] | D36: 附属設備 | E36: 217008 | F36: 0 | G36: 33693 | H36: 183315 | I36: 0.05
A37: [明細行] | B37: 事業所(合計) | C37: [貸借対照表] | D37: 機械装置 | E37: 285410 | F37: 0 | G37: 35999 | H37: 249411 | I37: 0.06
A38: [明細行] | B38: 事業所(合計) | C38: [貸借対照表] | D38: 車両運搬具 | E38: 331432 | F38: 0 | G38: 155713 | H38: 175719 | I38: 0.04
A39: [明細行] | B39: 事業所(合計) | C39: [貸借対照表] | D39: 工具器具備品 | E39: 77833 | F39: 800000 | G39: 369507 | H39: 508326 | I39: 0.13
A40: [明細行] | B40: 事業所(合計) | C40: [貸借対照表] | D40: 一括償却資産 | E40: 124200 | F40: 0 | G40: 0 | H40: 124200 | I40: 0.03
A41: [明細行] | B41: 事業所(合計) | C41: [貸借対照表] | D41: 土地 | E41: 25000000 | F41: 0 | G41: 0 | H41: 25000000 | I41: 6.29
A42: [合計行] | B42: 事業所(合計) | C42: [貸借対照表] | D42: 有形固定資産計 | E42: 45597083 | F42: 800000 | G42: 1113312 | H42: 45283771 | I42: 11.4
A43: [区分行] | B43: 事業所(合計) | C43: [貸借対照表] | D43: [無形固定資産]
A44: [明細行] | B44: 事業所(合計) | C44: [貸借対照表] | D44: 電話加入権 | E44: 150000 | F44: 0 | G44: 0 | H44: 150000 | I44: 0.04
A45: [合計行] | B45: 事業所(合計) | C45: [貸借対照表] | D45: 無形固定資産計 | E45: 150000 | F45: 0 | G45: 0 | H45: 150000 | I45: 0.04
A46: [区分行] | B46: 事業所(合計) | C46: [貸借対照表] | D46: [投資その他の資産]
A47: [明細行] | B47: 事業所(合計) | C47: [貸借対照表] | D47: 投資有価証券 | E47: 3000000 | F47: 0 | G47: 0 | H47: 3000000 | I47: 0.76
A48: [明細行] | B48: 事業所(合計) | C48: [貸借対照表] | D48: 関係会社株式 | E48: 500000 | F48: 0 | G48: 0 | H48: 500000 | I48: 0.13
A49: [明細行] | B49: 事業所(合計) | C49: [貸借対照表] | D49: 出資金 | E49: 700000 | F49: 0 | G49: 0 | H49: 700000 | I49: 0.18
A50: [明細行] | B50: 事業所(合計) | C50: [貸借対照表] | D50: 関係会社出資金 | E50: 1200000 | F50: 0 | G50: 0 | H50: 1200000 | I50: 0.3
A51: [明細行] | B51: 事業所(合計) | C51: [貸借対照表] | D51: 預託金 | E51: 27720 | F51: 0 | G51: 0 | H51: 27720 | I51: 0.01
A52: [合計行] | B52: 事業所(合計) | C52: [貸借対照表] | D52: 投資その他の資産合計 | E52: 5427720 | F52: 0 | G52: 0 | H52: 5427720 | I52: 1.37
A53: [合計行] | B53: 事業所(合計) | C53: [貸借対照表] | D53: 固定資産合計 | E53: 51174803 | F53: 800000 | G53: 1113312 | H53: 50861491 | I53: 12.81
A54: [区分行] | B54: 事業所(合計) | C54: [貸借対照表] | D54: [繰延資産]
A55: [合計行] | B55: 事業所(合計) | C55: [貸借対照表] | D55: 繰延資産合計 | E55: 0 | F55: 0 | G55: 0 | H55: 0 | I55: 0
A56: [区分行] | B56: 事業所(合計) | C56: [貸借対照表] | D56: [諸口]
A57: [合計行] | B57: 事業所(合計) | C57: [貸借対照表] | D57: 資産合計 | E57: 356388085 | F57: 740453892 | G57: 699661972 | H57: 397180005 | I57: 100
A58: [区分行] | B58: 事業所(合計) | C58: [貸借対照表] | D58: [仕入債務]
A59: [明細行] | B59: 事業所(合計) | C59: [貸借対照表] | D59: 支払手形 | E59: 23094285 | F59: 4618857 | G59: 9237714 | H59: 27713142 | I59: 6.98
A60: [明細行] | B60: 事業所(合計) | C60: [貸借対照表] | D60: 買掛金 | E60: 147512685 | F60: 198848065 | G60: 225019875 | H60: 173684495 | I60: 43.73
A61: [合計行] | B61: 事業所(合計) | C61: [貸借対照表] | D61: 仕入債務合計 | E61: 170606970 | F61: 203466922 | G61: 234257589 | H61: 201397637 | I61: 50.71
A62: [区分行] | B62: 事業所(合計) | C62: [貸借対照表] | D62: [他流動負債]
A63: [明細行] | B63: 事業所(合計) | C63: [貸借対照表] | D63: 短期借入金 | E63: 4500000 | F63: 4500000 | G63: 6000000 | H63: 6000000 | I63: 1.51
A64: [明細行] | B64: 事業所(合計) | C64: [貸借対照表] | D64: 未払法人税等 | E64: 1614500 | F64: 1614500 | G64: 1614500 | H64: 1614500 | I64: 0.41
A65: [明細行] | B65: 事業所(合計) | C65: [貸借対照表] | D65: 未払消費税等 | E65: 1285200 | F65: 2555700 | G65: 4280200 | H65: 3009700 | I65: 0.76
A66: [明細行] | B66: 事業所(合計) | C66: [貸借対照表] | D66: 預り金 | E66: 2216707 | F66: 6247680 | G66: 6420185 | H66: 2389212 | I66: 0.6
A67: [明細行] | B67: 事業所(合計) | C67: [貸借対照表] | D67: 仮受消費税等 | E67: 0 | F67: 30319231 | G67: 30319231 | H67: 0 | I67: 0
A68: [合計行] | B68: 事業所(合計) | C68: [貸借対照表] | D68: 他流動負債合計 | E68: 9616407 | F68: 45237111 | G68: 48634116 | H68: 13013412 | I68: 3.28
A69: [合計行] | B69: 事業所(合計) | C69: [貸借対照表] | D69: 流動負債合計 | E69: 180223377 | F69: 248704033 | G69: 282891705 | H69: 214411049 | I69: 53.98
A70: [区分行] | B70: 事業所(合計) | C70: [貸借対照表] | D70: [固定負債]
A71: [明細行] | B71: 事業所(合計) | C71: [貸借対照表] | D71: 長期借入金 | E71: 9919639 | F71: 2329188 | G71: 0 | H71: 7590451 | I71: 1.91
A72: [合計行] | B72: 事業所(合計) | C72: [貸借対照表] | D72: 固定負債合計 | E72: 9919639 | F72: 2329188 | G72: 0 | H72: 7590451 | I72: 1.91
A73: [合計行] | B73: 事業所(合計) | C73: [貸借対照表] | D73: 負債合計 | E73: 190143016 | F73: 251033221 | G73: 282891705 | H73: 222001500 | I73: 55.89
A74: [区分行] | B74: 事業所(合計) | C74: [貸借対照表] | D74: [資本金]
A75: [明細行] | B75: 事業所(合計) | C75: [貸借対照表] | D75: 資本金 | E75: 10000000 | F75: 0 | G75: 0 | H75: 10000000 | I75: 2.52
A76: [合計行] | B76: 事業所(合計) | C76: [貸借対照表] | D76: 資本金合計 | E76: 10000000 | F76: 0 | G76: 0 | H76: 10000000 | I76: 2.52
A77: [区分行] | B77: 事業所(合計) | C77: [貸借対照表] | D77: [新株式申込証拠金]
A78: [合計行] | B78: 事業所(合計) | C78: [貸借対照表] | D78: 新株式申込証拠金合計 | E78: 0 | F78: 0 | G78: 0 | H78: 0 | I78: 0
A79: [区分行] | B79: 事業所(合計) | C79: [貸借対照表] | D79: [資本剰余金]
A80: [明細行] | B80: 事業所(合計) | C80: [貸借対照表] | D80: 資本準備金 | E80: 5000000 | F80: 0 | G80: 0 | H80: 5000000 | I80: 1.26
A81: [合計行] | B81: 事業所(合計) | C81: [貸借対照表] | D81: 資本準備金合計 | E81: 5000000 | F81: 0 | G81: 0 | H81: 5000000 | I81: 1.26
A82: [合計行] | B82: 事業所(合計) | C82: [貸借対照表] | D82: その他資本剰余金合計 | E82: 0 | F82: 0 | G82: 0 | H82: 0 | I82: 0
A83: [合計行] | B83: 事業所(合計) | C83: [貸借対照表] | D83: 資本剰余金合計 | E83: 5000000 | F83: 0 | G83: 0 | H83: 5000000 | I83: 1.26
A84: [区分行] | B84: 事業所(合計) | C84: [貸借対照表] | D84: [利益剰余金]
A85: [明細行] | B85: 事業所(合計) | C85: [貸借対照表] | D85: 利益準備金 | E85: 5000000 | F85: 0 | G85: 0 | H85: 5000000 | I85: 1.26
A86: [合計行] | B86: 事業所(合計) | C86: [貸借対照表] | D86: 利益準備金合計 | E86: 5000000 | F86: 0 | G86: 0 | H86: 5000000 | I86: 1.26
A87: [明細行] | B87: 事業所(合計) | C87: [貸借対照表] | D87: 別途積立金 | E87: 2000000 | F87: 0 | G87: 0 | H87: 2000000 | I87: 0.5
A88: [合計行] | B88: 事業所(合計) | C88: [貸借対照表] | D88: 任意積立金合計 | E88: 2000000 | F88: 0 | G88: 0 | H88: 2000000 | I88: 0.5
A89: [明細行] | B89: 事業所(合計) | C89: [貸借対照表] | D89: 繰越利益 | E89: 144245069 | F89: 0 | G89: 0 | H89: 144245069 | I89: 36.32
A90: [合計行] | B90: 事業所(合計) | C90: [貸借対照表] | D90: 当期純損益金額 | E90: 0 | G90: 8933436 | H90: 8933436 | I90: 2.25
A91: [合計行] | B91: 事業所(合計) | C91: [貸借対照表] | D91: 繰越利益剰余金合計 | E91: 144245069 | F91: 0 | G91: 8933436 | H91: 153178505 | I91: 38.57
A92: [合計行] | B92: 事業所(合計) | C92: [貸借対照表] | D92: その他利益剰余金合計 | E92: 146245069 | F92: 0 | G92: 8933436 | H92: 155178505 | I92: 39.07
A93: [合計行] | B93: 事業所(合計) | C93: [貸借対照表] | D93: 利益剰余金合計 | E93: 151245069 | F93: 0 | G93: 8933436 | H93: 160178505 | I93: 40.33
A94: [区分行] | B94: 事業所(合計) | C94: [貸借対照表] | D94: [自己株式]
A95: [合計行] | B95: 事業所(合計) | C95: [貸借対照表] | D95: 自己株式合計 | E95: 0 | F95: 0 | G95: 0 | H95: 0 | I95: 0
A96: [区分行] | B96: 事業所(合計) | C96: [貸借対照表] | D96: [自己株式申込証拠金]
A97: [合計行] | B97: 事業所(合計) | C97: [貸借対照表] | D97: 自己株式申込証拠金合計 | E97: 0 | F97: 0 | G97: 0 | H97: 0 | I97: 0
A98: [合計行] | B98: 事業所(合計) | C98: [貸借対照表] | D98: 株主資本合計 | E98: 166245069 | F98: 0 | G98: 8933436 | H98: 175178505 | I98: 44.11
A99: [区分行] | B99: 事業所(合計) | C99: [貸借対照表] | D99: [評価･換算差額等]
A100: [合計行] | B100: 事業所(合計) | C100: [貸借対照表] | D100: 評価･換算差額等合計 | E100: 0 | F100: 0 | G100: 0 | H100: 0 | I100: 0
A101: [区分行] | B101: 事業所(合計) | C101: [貸借対照表] | D101: [新株予約権]
A102: [合計行] | B102: 事業所(合計) | C102: [貸借対照表] | D102: 新株予約権合計 | E102: 0 | F102: 0 | G102: 0 | H102: 0 | I102: 0
A103: [合計行] | B103: 事業所(合計) | C103: [貸借対照表] | D103: 純資産合計 | E103: 166245069 | F103: 0 | G103: 8933436 | H103: 175178505 | I103: 44.11
A104: [合計行] | B104: 事業所(合計) | C104: [貸借対照表] | D104: 負債･純資産合計 | E104: 356388085 | F104: 251033221 | G104: 291825141 | H104: 397180005 | I104: 100
A105: [区分行] | B105: 事業所(合計) | C105: [損益計算書] | D105: [売上高]
A106: [明細行] | B106: 事業所(合計) | C106: [損益計算書] | D106: 売上高 | E106: 0 | F106: 0 | G106: 282522104 | H106: 282522104 | I106: 100
A107: [合計行] | B107: 事業所(合計) | C107: [損益計算書] | D107: 売上高合計 | E107: 0 | F107: 0 | G107: 282522104 | H107: 282522104 | I107: 100
A108: [区分行] | B108: 事業所(合計) | C108: [損益計算書] | D108: [売上原価]
A109: [明細行] | B109: 事業所(合計) | C109: [損益計算書] | D109: 期首商品棚卸高 | E109: 0 | F109: 24500000 | G109: 0 | H109: 24500000 | I109: 8.67
A110: [合計行] | B110: 事業所(合計) | C110: [損益計算書] | D110: 期首商品棚卸高 | E110: 0 | F110: 24500000 | G110: 0 | H110: 24500000 | I110: 8.67
A111: [明細行] | B111: 事業所(合計) | C111: [損益計算書] | D111: 仕入高 | E111: 0 | F111: 173791246 | G111: 0 | H111: 173791246 | I111: 61.51
A112: [明細行] | B112: 事業所(合計) | C112: [損益計算書] | D112: 仕入戻し高 | E112: 0 | F112: 0 | G112: 138890 | H112: 138890 | I112: 0.05
A113: [明細行] | B113: 事業所(合計) | C113: [損益計算書] | D113: 仕入割戻し高 | E113: 0 | F113: 0 | G113: 55556 | H113: 55556 | I113: 0.02
A114: [合計行] | B114: 事業所(合計) | C114: [損益計算書] | D114: 当期商品仕入高 | E114: 0 | F114: 173791246 | G114: 194446 | H114: 173596800 | I114: 61.45
A115: [合計行] | B115: 事業所(合計) | C115: [損益計算書] | D115: 合計 | E115: 0 | F115: 198291246 | G115: 194446 | H115: 198096800 | I115: 70.12
A116: [明細行] | B116: 事業所(合計) | C116: [損益計算書] | D116: 期末商品棚卸高 | E116: 0 | F116: 0 | G116: 24500000 | H116: 24500000 | I116: 8.67
A117: [合計行] | B117: 事業所(合計) | C117: [損益計算書] | D117: 期末商品棚卸高 | E117: 0 | F117: 0 | G117: 24500000 | H117: 24500000 | I117: 8.67
A118: [合計行] | B118: 事業所(合計) | C118: [損益計算書] | D118: 商品売上原価 | E118: 0 | F118: 198291246 | G118: 24694446 | H118: 173596800 | I118: 61.45
A119: [合計行] | B119: 事業所(合計) | C119: [損益計算書] | D119: 期首製品棚卸高 | E119: 0 | F119: 0 | G119: 0 | H119: 0 | I119: 0
A120: [合計行] | B120: 事業所(合計) | C120: [損益計算書] | D120: 当期製品製造原価 | E120: 0 | F120: 41368948 | G120: 3427600 | H120: 37941348 | I120: 13.43
A121: [合計行] | B121: 事業所(合計) | C121: [損益計算書] | D121: 合計 | E121: 0 | F121: 41368948 | G121: 3427600 | H121: 37941348 | I121: 13.43
A122: [合計行] | B122: 事業所(合計) | C122: [損益計算書] | D122: 期末製品棚卸高 | E122: 0 | F122: 0 | G122: 0 | H122: 0 | I122: 0
A123: [合計行] | B123: 事業所(合計) | C123: [損益計算書] | D123: 製品売上原価 | E123: 0 | F123: 41368948 | G123: 3427600 | H123: 37941348 | I123: 13.43
A124: [合計行] | B124: 事業所(合計) | C124: [損益計算書] | D124: 売上原価 | E124: 0 | F124: 239660194 | G124: 28122046 | H124: 211538148 | I124: 74.87
A125: [合計行] | B125: 事業所(合計) | C125: [損益計算書] | D125: 売上総損益金額 | E125: 0 | G125: 70983956 | H125: 70983956 | I125: 25.13
A126: [区分行] | B126: 事業所(合計) | C126: [損益計算書] | D126: [販売管理費]
A127: [明細行] | B127: 事業所(合計) | C127: [損益計算書] | D127: 役員報酬 | E127: 0 | F127: 9600000 | G127: 0 | H127: 9600000 | I127: 3.4
A128: [明細行] | B128: 事業所(合計) | C128: [損益計算書] | D128: 給料手当 | E128: 0 | F128: 12863500 | G128: 0 | H128: 12863500 | I128: 4.55
A129: [明細行] | B129: 事業所(合計) | C129: [損益計算書] | D129: 賞与 | E129: 0 | F129: 7455000 | G129: 0 | H129: 7455000 | I129: 2.64
A130: [明細行] | B130: 事業所(合計) | C130: [損益計算書] | D130: 法定福利費 | E130: 0 | F130: 2851904 | G130: 538140 | H130: 2313764 | I130: 0.82
A131: [明細行] | B131: 事業所(合計) | C131: [損益計算書] | D131: 福利厚生費 | E131: 0 | F131: 289920 | G131: 0 | H131: 289920 | I131: 0.1
A132: [明細行] | B132: 事業所(合計) | C132: [損益計算書] | D132: 採用教育費 | E132: 0 | F132: 777778 | G132: 0 | H132: 777778 | I132: 0.28
A133: [明細行] | B133: 事業所(合計) | C133: [損益計算書] | D133: 荷造運賃 | E133: 0 | F133: 4487414 | G133: 0 | H133: 4487414 | I133: 1.59
A134: [明細行] | B134: 事業所(合計) | C134: [損益計算書] | D134: 広告宣伝費 | E134: 0 | F134: 4899538 | G134: 0 | H134: 4899538 | I134: 1.73
A135: [明細行] | B135: 事業所(合計) | C135: [損益計算書] | D135: 交際費 | E135: 0 | F135: 1126931 | G135: 0 | H135: 1126931 | I135: 0.4
A136: [明細行] | B136: 事業所(合計) | C136: [損益計算書] | D136: 旅費交通費 | E136: 0 | F136: 1698049 | G136: 0 | H136: 1698049 | I136: 0.6
A137: [明細行] | B137: 事業所(合計) | C137: [損益計算書] | D137: 通信費 | E137: 0 | F137: 1425649 | G137: 0 | H137: 1425649 | I137: 0.5
A138: [明細行] | B138: 事業所(合計) | C138: [損益計算書] | D138: 消耗品費 | E138: 0 | F138: 192551 | G138: 0 | H138: 192551 | I138: 0.07
A139: [明細行] | B139: 事業所(合計) | C139: [損益計算書] | D139: 事務用品費 | E139: 0 | F139: 127117 | G139: 0 | H139: 127117 | I139: 0.04
A140: [明細行] | B140: 事業所(合計) | C140: [損益計算書] | D140: 修繕費 | E140: 0 | F140: 208841 | G140: 0 | H140: 208841 | I140: 0.07
A141: [明細行] | B141: 事業所(合計) | C141: [損益計算書] | D141: 水道光熱費 | E141: 0 | F141: 1151279 | G141: 0 | H141: 1151279 | I141: 0.41
A142: [明細行] | B142: 事業所(合計) | C142: [損益計算書] | D142: 支払手数料 | E142: 0 | F142: 57623 | G142: 0 | H142: 57623 | I142: 0.02
A143: [明細行] | B143: 事業所(合計) | C143: [損益計算書] | D143: 車両費 | E143: 0 | F143: 1198338 | G143: 0 | H143: 1198338 | I143: 0.42
A144: [明細行] | B144: 事業所(合計) | C144: [損益計算書] | D144: 地代家賃 | E144: 0 | F144: 6788909 | G144: 0 | H144: 6788909 | I144: 2.4
A145: [明細行] | B145: 事業所(合計) | C145: [損益計算書] | D145: リース料 | E145: 0 | F145: 195012 | G145: 0 | H145: 195012 | I145: 0.07
A146: [明細行] | B146: 事業所(合計) | C146: [損益計算書] | D146: 保険料 | E146: 0 | F146: 1201258 | G146: 0 | H146: 1201258 | I146: 0.43
A147: [明細行] | B147: 事業所(合計) | C147: [損益計算書] | D147: 租税公課 | E147: 0 | F147: 218400 | G147: 0 | H147: 218400 | I147: 0.08
A148: [明細行] | B148: 事業所(合計) | C148: [損益計算書] | D148: 支払報酬料 | E148: 0 | F148: 555564 | G148: 0 | H148: 555564 | I148: 0.2
A149: [明細行] | B149: 事業所(合計) | C149: [損益計算書] | D149: 減価償却費 | E149: 0 | F149: 828913 | G149: 0 | H149: 828913 | I149: 0.29
A150: [明細行] | B150: 事業所(合計) | C150: [損益計算書] | D150: 貸倒引当金繰入額(販) | E150: 0 | F150: 367902 | G150: 0 | H150: 367902 | I150: 0.13
A151: [明細行] | B151: 事業所(合計) | C151: [損益計算書] | D151: 雑費 | E151: 0 | F151: 38889 | G151: 0 | H151: 38889 | I151: 0.01
A152: [合計行] | B152: 事業所(合計) | C152: [損益計算書] | D152: 販売管理費計 | E152: 0 | F152: 60606279 | G152: 538140 | H152: 60068139 | I152: 21.26
A153: [合計行] | B153: 事業所(合計) | C153: [損益計算書] | D153: 営業損益金額 | E153: 0 | G153: 10915817 | H153: 10915817 | I153: 3.86
A154: [区分行] | B154: 事業所(合計) | C154: [損益計算書] | D154: [営業外収益]
A155: [明細行] | B155: 事業所(合計) | C155: [損益計算書] | D155: 受取利息 | E155: 0 | F155: 0 | G155: 12428 | H155: 12428 | I155: 0
A156: [明細行] | B156: 事業所(合計) | C156: [損益計算書] | D156: 受取配当金 | E156: 0 | F156: 0 | G156: 800 | H156: 800 | I156: 0
A157: [明細行] | B157: 事業所(合計) | C157: [損益計算書] | D157: 貸倒引当金戻入額 | E157: 0 | F157: 0 | G157: 314905 | H157: 314905 | I157: 0.11
A158: [合計行] | B158: 事業所(合計) | C158: [損益計算書] | D158: 営業外収益合計 | E158: 0 | F158: 0 | G158: 328133 | H158: 328133 | I158: 0.12
A159: [区分行] | B159: 事業所(合計) | C159: [損益計算書] | D159: [営業外費用]
A160: [明細行] | B160: 事業所(合計) | C160: [損益計算書] | D160: 支払利息 | E160: 0 | F160: 283207 | G160: 0 | H160: 283207 | I160: 0.1
A161: [明細行] | B161: 事業所(合計) | C161: [損益計算書] | D161: 雑損失 | E161: 0 | F161: -2239836 | G161: 0 | H161: -2239836 | I161: -0.79
A162: [合計行] | B162: 事業所(合計) | C162: [損益計算書] | D162: 営業外費用合計 | E162: 0 | F162: -1956629 | G162: 0 | H162: -1956629 | I162: -0.69
A163: [合計行] | B163: 事業所(合計) | C163: [損益計算書] | D163: 経常損益金額 | E163: 0 | G163: 13200579 | H163: 13200579 | I163: 4.67
A164: [区分行] | B164: 事業所(合計) | C164: [損益計算書] | D164: [特別利益]
A165: [合計行] | B165: 事業所(合計) | C165: [損益計算書] | D165: 特別利益合計 | E165: 0 | F165: 0 | G165: 0 | H165: 0 | I165: 0
A166: [区分行] | B166: 事業所(合計) | C166: [損益計算書] | D166: [特別損失]
A167: [合計行] | B167: 事業所(合計) | C167: [損益計算書] | D167: 特別損失合計 | E167: 0 | F167: 0 | G167: 0 | H167: 0 | I167: 0
A168: [区分行] | B168: 事業所(合計) | C168: [損益計算書] | D168: [当期純損益]
A169: [合計行] | B169: 事業所(合計) | C169: [損益計算書] | D169: 税引前当期純損益金額 | E169: 0 | G169: 13200579 | H169: 13200579 | I169: 4.67
A170: [明細行] | B170: 事業所(合計) | C170: [損益計算書] | D170: 法人税、住民税及び事業税 | E170: 0 | F170: 4267143 | G170: 0 | H170: 4267143 | I170: 1.51
A171: [合計行] | B171: 事業所(合計) | C171: [損益計算書] | D171: 当期純損益金額 | E171: 0 | G171: 8933436 | H171: 8933436 | I171: 3.16
A172: [区分行] | B172: 事業所(合計) | C172: [製造原価報告書] | D172: [材料費]
A173: [明細行] | B173: 事業所(合計) | C173: [製造原価報告書] | D173: [製]期首材料棚卸高 | E173: 0 | F173: 456600 | G173: 0 | H173: 456600 | I173: 0.16
A174: [明細行] | B174: 事業所(合計) | C174: [製造原価報告書] | D174: [製]材料仕入高 | E174: 0 | F174: 24314177 | G174: 0 | H174: 24314177 | I174: 8.61
A175: [合計行] | B175: 事業所(合計) | C175: [製造原価報告書] | D175: 合計 | E175: 0 | F175: 24770777 | G175: 0 | H175: 24770777 | I175: 8.77
A176: [明細行] | B176: 事業所(合計) | C176: [製造原価報告書] | D176: [製]期末材料棚卸高 | E176: 0 | F176: 0 | G176: 456600 | H176: 456600 | I176: 0.16
A177: [合計行] | B177: 事業所(合計) | C177: [製造原価報告書] | D177: 材料費合計 | E177: 0 | F177: 24770777 | G177: 456600 | H177: 24314177 | I177: 8.61
A178: [区分行] | B178: 事業所(合計) | C178: [製造原価報告書] | D178: [労務費]
A179: [明細行] | B179: 事業所(合計) | C179: [製造原価報告書] | D179: [製]給料手当 | E179: 0 | F179: 3211200 | G179: 0 | H179: 3211200 | I179: 1.14
A180: [明細行] | B180: 事業所(合計) | C180: [製造原価報告書] | D180: [製]賞与 | E180: 0 | F180: 1350000 | G180: 0 | H180: 1350000 | I180: 0.48
A181: [明細行] | B181: 事業所(合計) | C181: [製造原価報告書] | D181: [製]法定福利費 | E181: 0 | F181: 538140 | G181: 0 | H181: 538140 | I181: 0.19
A182: [明細行] | B182: 事業所(合計) | C182: [製造原価報告書] | D182: [製]福利厚生費 | E182: 0 | F182: 42916 | G182: 0 | H182: 42916 | I182: 0.02
A183: [合計行] | B183: 事業所(合計) | C183: [製造原価報告書] | D183: 労務費合計 | E183: 0 | F183: 5142256 | G183: 0 | H183: 5142256 | I183: 1.82
A184: [区分行] | B184: 事業所(合計) | C184: [製造原価報告書] | D184: [製造経費]
A185: [明細行] | B185: 事業所(合計) | C185: [製造原価報告書] | D185: [製]外注加工費 | E185: 0 | F185: 4596766 | G185: 0 | H185: 4596766 | I185: 1.63
A186: [明細行] | B186: 事業所(合計) | C186: [製造原価報告書] | D186: [製]旅費交通費 | E186: 0 | F186: 86676 | G186: 0 | H186: 86676 | I186: 0.03
A187: [明細行] | B187: 事業所(合計) | C187: [製造原価報告書] | D187: [製]通信費 | E187: 0 | F187: 282114 | G187: 0 | H187: 282114 | I187: 0.1
A188: [明細行] | B188: 事業所(合計) | C188: [製造原価報告書] | D188: [製]消耗品費 | E188: 0 | F188: 244641 | G188: 0 | H188: 244641 | I188: 0.09
A189: [明細行] | B189: 事業所(合計) | C189: [製造原価報告書] | D189: [製]消耗工具費 | E189: 0 | F189: 44168 | G189: 0 | H189: 44168 | I189: 0.02
A190: [明細行] | B190: 事業所(合計) | C190: [製造原価報告書] | D190: [製]修繕費 | E190: 0 | F190: 106482 | G190: 0 | H190: 106482 | I190: 0.04
A191: [明細行] | B191: 事業所(合計) | C191: [製造原価報告書] | D191: [製]水道光熱費 | E191: 0 | F191: 1066045 | G191: 0 | H191: 1066045 | I191: 0.38
A192: [明細行] | B192: 事業所(合計) | C192: [製造原価報告書] | D192: [製]減価償却費 | E192: 0 | F192: 284399 | G192: 0 | H192: 284399 | I192: 0.1
A193: [明細行] | B193: 事業所(合計) | C193: [製造原価報告書] | D193: [製]地代家賃 | E193: 0 | F193: 1277784 | G193: 0 | H193: 1277784 | I193: 0.45
A194: [明細行] | B194: 事業所(合計) | C194: [製造原価報告書] | D194: [製]賃借料 | E194: 0 | F194: 495840 | G194: 0 | H194: 495840 | I194: 0.18
A195: [合計行] | B195: 事業所(合計) | C195: [製造原価報告書] | D195: 製造経費合計 | E195: 0 | F195: 8484915 | G195: 0 | H195: 8484915 | I195: 3
A196: [合計行] | B196: 事業所(合計) | C196: [製造原価報告書] | D196: 総製造費用 | E196: 0 | F196: 38397948 | G196: 456600 | H196: 37941348 | I196: 13.43
A197: [区分行] | B197: 事業所(合計) | C197: [製造原価報告書] | D197: [仕掛品]
A198: [明細行] | B198: 事業所(合計) | C198: [製造原価報告書] | D198: [製]期首仕掛品 | E198: 0 | F198: 240000 | G198: 0 | H198: 240000 | I198: 0.08
A199: [明細行] | B199: 事業所(合計) | C199: [製造原価報告書] | D199: [製]期首半製品 | E199: 0 | F199: 2731000 | G199: 0 | H199: 2731000 | I199: 0.97
A200: [合計行] | B200: 事業所(合計) | C200: [製造原価報告書] | D200: 合計 | E200: 0 | F200: 41368948 | G200: 456600 | H200: 40912348 | I200: 14.48
... 3 more rows

Sheet 明細行 (hidden)
A1: [貸借対照表] | B1: 現金 | C1: 現金預金 （流動資産） | D1: 56592968
A2: [貸借対照表] | B2: 当座預金 | C2: 現金預金 （流動資産） | D2: 164376760
A3: [貸借対照表] | B3: 普通預金 | C3: 現金預金 （流動資産） | D3: 58551851
A4: [貸借対照表] | B4: 定期預金 | C4: 現金預金 （流動資産） | D4: 2068000
A5: [貸借対照表] | B5: 受取手形 | C5: 受取手形 （流動資産） | D5: 4043649
A6: [貸借対照表] | B6: 売掛金 | C6: 完成工事未収入金 （流動資産） | D6: 32746025
A7: [貸借対照表] | B7: 貸倒引当金(売) | C7: 貸倒引当金 （流動資産） | D7: -367902
A8: [貸借対照表] | B8: 商品 | C8: 材料貯蔵品 （流動資産） | D8: 24500000
A9: [貸借対照表] | B9: 半製品 | C9: 材料貯蔵品 （流動資産） | D9: 2731000
A10: [貸借対照表] | B10: 原材料 | C10: 材料貯蔵品 （流動資産） | D10: 456600
A11: [貸借対照表] | B11: 仕掛品 | C11: 材料貯蔵品 （流動資産） | D11: 240000
A12: [貸借対照表] | B12: 立替金 | C12: 前払費用 （流動資産） | D12: 258749
A13: [貸借対照表] | B13: 未収収益 | C13: その他 （流動資産） | D13: 300000
A14: [貸借対照表] | B14: 仮払消費税等 | C14: その他 （流動資産） | D14: -179186
A15: [貸借対照表] | B15: 建物 | C15: 建物・構築物 （有形固定資産） | D15: 19042800
A16: [貸借対照表] | B16: 附属設備 | C16: 建物・構築物 （有形固定資産） | D16: 183315
A17: [貸借対照表] | B17: 機械装置 | C17: 機械・運搬具 （有形固定資産） | D17: 249411
A18: [貸借対照表] | B18: 車両運搬具 | C18: 機械・運搬具 （有形固定資産） | D18: 175719
A19: [貸借対照表] | B19: 工具器具備品 | C19: 工具器具・備品 （有形固定資産） | D19: 508326
A20: [貸借対照表] | B20: 一括償却資産 | C20: その他 （流動資産） | D20: 124200
A21: [貸借対照表] | B21: 土地 | C21: 土地 （有形固定資産） | D21: 25000000
A22: [貸借対照表] | B22: 電話加入権 | C22: その他 （無形固定資産） | D22: 150000
A23: [貸借対照表] | B23: 投資有価証券 | C23: 投資有価証券 （投資その他の資産） | D23: 3000000
A24: [貸借対照表] | B24: 関係会社株式 | C24: 関係会社株式・関係会社出資金 （投資その他の資産） | D24: 500000
A25: [貸借対照表] | B25: 出資金 | C25: 投資有価証券 （投資その他の資産） | D25: 700000
A26: [貸借対照表] | B26: 関係会社出資金 | C26: 関係会社株式・関係会社出資金 （投資その他の資産） | D26: 1200000
A27: [貸借対照表] | B27: 預託金 | C27: その他 （投資その他の資産） | D27: 27720
A28: [貸借対照表] | B28: 支払手形 | C28: 支払手形 （流動負債） | D28: 27713142
A29: [貸借対照表] | B29: 買掛金 | C29: 工事未払金 （流動負債） | D29: 173684495
A30: [貸借対照表] | B30: 短期借入金 | C30: 短期借入金 （流動負債） | D30: 6000000
A31: [貸借対照表] | B31: 未払法人税等 | C31: 未払法人税等 （流動負債） | D31: 1614500
A32: [貸借対照表] | B32: 未払消費税等 | C32: 未払金 （流動負債） | D32: 3009700
A33: [貸借対照表] | B33: 預り金 | C33: 預り金 （流動負債） | D33: 2389212
A34: [貸借対照表] | B34: 仮受消費税等 | C34: その他 （流動負債） | D34: 0
A35: [貸借対照表] | B35: 長期借入金 | C35: 長期借入金 （固定負債） | D35: 7590451
A36: [貸借対照表] | B36: 資本金 | C36: 資本金 （純資産） | D36: 10000000
A37: [貸借対照表] | B37: 資本準備金 | C37: 資本準備金 （純資産） | D37: 5000000
A38: [貸借対照表] | B38: 利益準備金 | C38: 利益準備金 （純資産） | D38: 5000000
A39: [貸借対照表] | B39: 別途積立金 | C39: 別途積立金 （純資産） | D39: 2000000
A40: [貸借対照表] | B40: 繰越利益 | C40: 繰越利益剰余金 （純資産） | D40: 144245069
A41: [損益計算書] | B41: 売上高 | C41: 完成工事高 （売上高） | D41: 282522104
A42: [損益計算書] | B42: 期首商品棚卸高 | C42: 完成工事原価 （売上原価） | D42: 24500000
A43: [損益計算書] | B43: 仕入高 | C43: 完成工事原価 （売上原価） | D43: 173791246
A44: [損益計算書] | B44: 仕入戻し高 | C44: 完成工事原価 （売上原価） | D44: 138890
A45: [損益計算書] | B45: 仕入割戻し高 | C45: 完成工事原価 （売上原価） | D45: 55556
A46: [損益計算書] | B46: 期末商品棚卸高 | C46: 完成工事原価 （売上原価） | D46: 24500000
A47: [損益計算書] | B47: 役員報酬 | C47: 役員報酬 （販管費） | D47: 9600000
A48: [損益計算書] | B48: 給料手当 | C48: 従業員給料手当 （販管費） | D48: 12863500
A49: [損益計算書] | B49: 賞与 | C49: 従業員給料手当 （販管費） | D49: 7455000
A50: [損益計算書] | B50: 法定福利費 | C50: 法定福利費 （販管費） | D50: 2313764
A51: [損益計算書] | B51: 福利厚生費 | C51: 福利厚生費 （販管費） | D51: 289920
A52: [損益計算書] | B52: 採用教育費 | C52: 福利厚生費 （販管費） | D52: 777778
A53: [損益計算書] | B53: 荷造運賃 | C53: 通信交通費 （販管費） | D53: 4487414
A54: [損益計算書] | B54: 広告宣伝費 | C54: 広告宣伝費 （販管費） | D54: 4899538
A55: [損益計算書] | B55: 交際費 | C55: 交際費 （販管費） | D55: 1126931
A56: [損益計算書] | B56: 旅費交通費 | C56: 通信交通費 （販管費） | D56: 1698049
A57: [損益計算書] | B57: 通信費 | C57: 通信交通費 （販管費） | D57: 1425649
A58: [損益計算書] | B58: 消耗品費 | C58: 事務用品費 （販管費） | D58: 192551
A59: [損益計算書] | B59: 事務用品費 | C59: 事務用品費 （販管費） | D59: 127117
A60: [損益計算書] | B60: 修繕費 | C60: 修繕維持費 （販管費） | D60: 208841
A61: [損益計算書] | B61: 水道光熱費 | C61: 動力用水光熱費 （販管費） | D61: 1151279
A62: [損益計算書] | B62: 支払手数料 | C62: 雑費 （販管費） | D62: 57623
A63: [損益計算書] | B63: 車両費 | C63: 通信交通費 （販管費） | D63: 1198338
A64: [損益計算書] | B64: 地代家賃 | C64: 地代家賃 （販管費） | D64: 6788909
A65: [損益計算書] | B65: リース料 | C65: 雑費 （販管費） | D65: 195012
A66: [損益計算書] | B66: 保険料 | C66: 保険料 （販管費） | D66: 1201258
A67: [損益計算書] | B67: 租税公課 | C67: 租税公課 （販管費） | D67: 218400
A68: [損益計算書] | B68: 支払報酬料 | C68: 雑費 （販管費） | D68: 555564
A69: [損益計算書] | B69: 減価償却費 | C69: 減価償却費 （販管費） | D69: 828913
A70: [損益計算書] | B70: 貸倒引当金繰入額(販) | C70: 貸倒引当金繰入額 （販管費） | D70: 367902
A71: [損益計算書] | B71: 雑費 | C71: 雑費 （販管費） | D71: 38889
A72: [損益計算書] | B72: 受取利息 | C72: 受取利息及び配当金 （営業外利益） | D72: 12428
A73: [損益計算書] | B73: 受取配当金 | C73: 受取利息及び配当金 （営業外利益） | D73: 800
A74: [損益計算書] | B74: 貸倒引当金戻入額 | C74: その他 （営業外利益） | D74: 314905
A75: [損益計算書] | B75: 支払利息 | C75: 支払利息 （営業外費用） | D75: 283207
A76: [損益計算書] | B76: 雑損失 | C76: その他 （営業外費用） | D76: -2239836
A77: [損益計算書] | B77: 法人税、住民税及び事業税 | C77: 法人税、住民税及び事業税 （法人税等） | D77: 4267143
A78: [製造原価報告書] | B78: [製]期首材料棚卸高 | C78: 経費 （製造原価） | D78: 456600
A79: [製造原価報告書] | B79: [製]材料仕入高 | C79: 材料費 （製造原価） | D79: 24314177
A80: [製造原価報告書] | B80: [製]期末材料棚卸高 | C80: 経費 （製造原価） | D80: 456600
A81: [製造原価報告書] | B81: [製]給料手当 | C81: 労務費 （製造原価） | D81: 3211200
A82: [製造原価報告書] | B82: [製]賞与 | C82: 労務費 （製造原価） | D82: 1350000
A83: [製造原価報告書] | B83: [製]法定福利費 | C83: 労務費 （製造原価） | D83: 538140
A84: [製造原価報告書] | B84: [製]福利厚生費 | C84: 労務費 （製造原価） | D84: 42916
A85: [製造原価報告書] | B85: [製]外注加工費 | C85: 外注費 （製造原価） | D85: 4596766
A86: [製造原価報告書] | B86: [製]旅費交通費 | C86: 経費 （製造原価） | D86: 86676
A87: [製造原価報告書] | B87: [製]通信費 | C87: 経費 （製造原価） | D87: 282114
A88: [製造原価報告書] | B88: [製]消耗品費 | C88: 経費 （製造原価） | D88: 244641
A89: [製造原価報告書] | B89: [製]消耗工具費 | C89: 経費 （製造原価） | D89: 44168
A90: [製造原価報告書] | B90: [製]修繕費 | C90: 経費 （製造原価） | D90: 106482
A91: [製造原価報告書] | B91: [製]水道光熱費 | C91: 経費 （製造原価） | D91: 1066045
A92: [製造原価報告書] | B92: [製]減価償却費 | C92: 経費 （製造原価） | D92: 284399
A93: [製造原価報告書] | B93: [製]地代家賃 | C93: 経費 （製造原価） | D93: 1277784
A94: [製造原価報告書] | B94: [製]賃借料 | C94: 経費 （製造原価） | D94: 495840
A95: [製造原価報告書] | B95: [製]期首仕掛品 | C95: 材料費 （製造原価） | D95: 240000
A96: [製造原価報告書] | B96: [製]期首半製品 | C96: 材料費 （製造原価） | D96: 2731000
A97: [製造原価報告書] | B97: [製]期末仕掛品 | C97: 材料費 （製造原価） | D97: 240000
A98: [製造原価報告書] | B98: [製]期末半製品 | C98: 材料費 （製造原価） | D98: 2731000

Sheet 基本データ
A8: １、会社名（上書きできます）
C9: 株式会社 弥生トレーディング
A11: ２，会計期間（上書きできます）
B12: 開始 | C12: 2014-04-01
B13: 終了 | C13: 2015-03-31
A15: ３、事業年度末日における発行済株式の種類
C16: 普通株式
A18: ４、事業年度末日における発行済株式の数
C19: 1000

Sheet 第十五号
A1: 様式第十五号（第四条、第十条、第十九条の四関係）
F4: 貸 借 対 照 表
D5: =基本データ!C13 -> 2015-03-31 | G5: 現在
F7: （会社名） | G7: =基本データ!C9 -> 株式会社 弥生トレーディング
F9: 資 産 の 部
A11: Ⅰ 流 動 資 産 | I11: 千円
A12: 現金預金 | H12: 281589
A13: 受取手形 | H13: 4043
A14: 完成工事未収入金 | H14: 32746
A15: 有価証券 | H15: 0
A16: 未成工事支出金 | H16: 0
A17: 材料貯蔵品 | H17: 27927
A18: 短期貸付金 | H18: 0
A19: 前払費用 | H19: 258
A20: 繰延税金資産 | H20: 0
A21: その他 | H21: 245
A22: 貸倒引当金 | G22: △ | H22: 367
A23: 流動資産合計 | H23: 346318
A25: Ⅱ 固 定 資 産
A26: (1) 有形固定資産
A27: 建物・構築物 | F27: 19226
A28: 減価償却累計額 | E28: △
A29: 機械・運搬具 | F29: 425
A30: 減価償却累計額 | E30: △
A31: 工具器具・備品 | F31: 508
A32: 減価償却累計額 | E32: △
A33: 土 地 | H33: 25000
A34: リース資産 | F34: 0
A35: 減価償却累計額 | E35: △
A36: 建設仮勘定 | H36: 0
A37: その他 | F37: 0
A38: 減価償却累計額 | E38: △
A39: 有形固定資産合計 | H39: 45283
A41: (2) 無形固定資産
A42: 特許権 | H42: 0
A43: 借地権 | H43: 0
A44: のれん | H44: 0
A45: リース資産 | H45: 0
A46: その他 | H46: 150
A47: 無形固定資産合計 | H47: 150
A50: (3) 投資その他の資産
A51: 投資有価証券 | H51: 3700
A52: 関係会社株式・関係会社出資金 | H52: 1700
A53: 長期貸付金 | H53: 0
A54: 破産更生債権等 | H54: 0
A55: 長期前払費用 | H55: 0
A56: 繰延税金資産 | H56: 0
A57: その他 | H57: 27
A58: 貸倒引当金 | G58: △ | H58: 0
A59: 投資その他の資産合計 | H59: 5427
A60: 固定資産合計 | H60: 50861
A62: Ⅲ 繰 延 資 産
A63: 創立費 | H63: 0
A64: 開業費 | H64: 0
A65: 株式交付費 | H65: 0
A66: 社債発行費 | H66: 0
A67: 開発費 | H67: 0
A68: 繰延資産合計 | H68: 0
A69: 資産合計 | H69: 397180
E72: 負 債 の 部
A74: Ⅰ 流 動 負 債
A75: 支払手形 | H75: 27713
A76: 工事未払金 | H76: 173684
A77: 短期借入金 | H77: 6000
A78: リース債務 | H78: 0
A79: 未払金 | H79: 3009
A80: 未払費用 | H80: 0
A81: 未払法人税等 | H81: 1614
A82: 繰延税金負債 | H82: 0
A83: 未成工事受入金 | H83: 0
A84: 預り金 | H84: 2389
A85: 前受収益 | H85: 0
B86: =勘定科目テーブル!H58 ->  | C86: 引当金 | H86: 0
A87: その他 | H87: 0
A88: 流動負債合計 | H88: 214411
A91: Ⅱ 固 定 負 債
A92: 社債 | H92: 0
A93: 長期借入金 | H93: 7590
A94: リース債務 | H94: 0
A95: 繰延税金負債 | H95: 0
B96: =勘定科目テーブル!H64 ->  | C96: 引当金 | H96: 0
A97: 負ののれん | H97: 0
A98: その他 | H98: 0
A99: 固定負債合計 | H99: 7590
A100: 負債合計 | H100: 222001
F104: 純 資 産 の 部
A106: Ⅰ 株 主 資 本
B107: (1) 資本金 | H107: 10000
B108: (2) 新株式申込証拠金 | H108: 0
B109: (3) 資本剰余金
B110: 資本準備金 | H110: 5000
B111: その他資本剰余金 | H111: 0
B112: 資本剰余金合計 | H112: 5000
B113: (4) 利益剰余金
D114: 利益準備金 | H114: 5000
D115: その他利益剰余金
D116: =勘定科目テーブル!H73&"準備金" -> 準備金 | H116: 0
D117: =勘定科目テーブル!H74&"積立金" -> 別途積立金 | H117: 2000
D118: 繰越利益剰余金 | H118: 153178
D119: 利益剰余金合計 | H119: 160178
B120: (5) 自己株式 | G120: △ | H120: 0
B121: (6) 自己株式申込証拠金 | H121: 0
B122: 株主資本合計 | H122: 175178
A123: Ⅱ 評価・換算差額等
B124: (1) その他有価証券評価差額金 | H124: 0
B125: (2) 繰延ヘッジ損益 | H125: 0
B126: (3) 土地再評価差額金 | H126: 0
B127: 評価・換算差額等合計 | H127: 0
A128: Ⅲ 新 株 予 約 権 | H128: 0
B129: 純資産合計 | H129: 175178
B130: 負債純資産合計 | H130: 397180

Sheet 第十六号
A1: 様式第十六号 （第四条、第十条、第十九条の四関係）
A4: 損 益 計 算 書
A5: =TEXT(基本データ!C12,"自 ggge年ｍm月dｄ日") -> 自 平成26年04月01日
A6: =TEXT(基本データ!C13,"至 ggge年ｍm月d日") -> 至 平成27年03月31日
E8: （会社名） | F8: =基本データ!C9 -> 株式会社 弥生トレーディング
A10: Ⅰ 売 上 高 | I10: 千円
A11: 完成工事高 | F11: 282522
A12: 兼業事業売上高 | F12: 0 | H12: 282522
A15: Ⅱ 売 上 原 価
A16: 完成工事原価 | F16: 37941
A17: 兼業事業売上原価 | F17: 173596 | H17: 211538
A18: 売上総利益（売上総損失）
A19: 完成工事総利益（完成工事総損失） | F19: 244581
A20: 兼業事業総利益（兼業事業総損失） | F20: -173596 | H20: 70983
A23: Ⅲ 販売費及び一般管理費
A24: 役員報酬 | F24: 9600
A25: 従業員給料手当 | F25: 20318
A26: 退職金 | F26: 0
A27: 法定福利費 | F27: 2313
A28: 福利厚生費 | F28: 1067
A29: 修繕維持費 | F29: 208
A30: 事務用品費 | F30: 319
A31: 通信交通費 | F31: 8809
A32: 動力用水光熱費 | F32: 1151
A33: 調査研究費 | F33: 0
A34: 広告宣伝費 | F34: 4899
A35: 貸倒引当金繰入額 | F35: 367
A36: 貸倒損失 | F36: 0
A37: 交際費 | F37: 1126
A38: 寄付金 | F38: 0
A39: 地代家賃 | F39: 6788
A40: 減価償却費 | F40: 828
A41: 開発費償却 | F41: 0
A42: 租税公課 | F42: 218
A43: 保険料 | F43: 1201
A44: 雑 費 | F44: 847 | H44: 60068
A45: 営業利益（営業損失） | H45: 10915
A48: Ⅳ 営 業 外 収 益
A49: 受取利息及び配当金 | F49: 13
A50: その他 | F50: 314 | H50: 328
A53: Ⅴ 営 業 外 費 用
A54: 支払利息 | F54: 283
A55: 貸倒引当金繰入額 | F55: 0
A56: 貸倒損失 | F56: 0
A57: その他 | F57: -2239 | H57: -1956
A58: 経常利益（経常損失） | H58: 13200
A61: Ⅵ 特 別 利 益
A62: 前期損益修正益 | F62: 0
A63: その他 | F63: 0 | H63: 0
A66: Ⅶ 特 別 損 失
A67: 前期損益修正損 | F67: 0
A68: その他 | F68: 0 | H68: 0
A69: 税引前当期純利益（税引前当期純損失） | H69: 13200
A70: 法人税、住民税及び事業税 | F70: 4267
A71: 法人税等調整額 | F71: 0 | H71: 4267
A72: 当期純利益（当期純損失） | H72: 8933
D77: 完 成 工 事 原 価 報 告 書
E78: =TEXT(基本データ!C12,"自 ggge年ｍm月dｄ日") -> 自 平成26年04月01日
E79: =TEXT(基本データ!C13,"至 ggge年ｍm月d日") -> 至 平成27年03月31日
F81: （会社名） | G81: =基本データ!C9 -> 株式会社 弥生トレーディング
I83: 千円
A85: Ⅰ 材 料 費 | H85: 24314
A86: Ⅱ 労 務 費 | H86: 5142
A87: （うち労務外注費 | E87: 0 | F87: ）
A88: Ⅲ 外 注 費 | H88: 4596
A89: Ⅳ 経 費 | H89: 3888
A90: （うち人件費 | E90: 0 | F90: ）
A92: 完成工事原価 | H92: 37941

Sheet 第十七号
A1: 様式第十七号（第四条、第十条、第十九条の四関係）
I3: 株 主 資 本 等 変 動 計 算 書
G5: 自 | H5: =TEXT(基本データ!C12,"ggge年ｍm月dｄ日") -> 平成26年04月01日
G6: 至 | H6: =TEXT(基本データ!C13,"ggge年ｍm月dｄ日") -> 平成27年03月31日
K7: (会社名) | M7: =基本データ!C9 -> 株式会社 弥生トレーディング
Q9: 千円
B10: 株 主 資 本 | L10: 評 価 ・ 換 算 差 額 等 | P10: 新株 予約権 | Q10: 純資産 合 計
B11: 資本金 | C11: 資 本 剰 余 金 | F11: 利 益 剰 余 金 | J11: 自己 株式 | K11: 株主 資本 合計 | L11: その他有価証券評価差額金 | M11: 繰延ヘッジ損益 | N11: 土地 再評価 差額金 | O11: 評価・換算差額等合計
C12: 資本 準備金 | D12: その他 資本 剰余金 | E12: 資本 剰余金 合計 | F12: 利益準備金 | G12: その他利益剰余金 | I12: 利益 剰余金合計
G13: 積立金 | H13: 繰越 利益 剰余金
A14: 当期首残高 | B14: 10000 | C14: 5000 | D14: 0 | E14: 5000 | F14: 5000 | G14: 2000 | H14: 144245 | I14: 151245 | J14: 0 | K14: 166245 | L14: 0 | M14: 0 | N14: 0 | O14: 0 | P14: 0 | Q14: 166245
A15: 当期変動額
A16: 新株の発行
A17: 剰余金の配当 | H17: △ | I17: △ | K17: △ | Q17: △
A18: 当期純利益 | H18: 8933 | I18: 8933 | K18: 8933 | Q18: 8933
A19: 自己株式の処分
A21: 株主資本以外の項目の当期変動額(純額)
A22: 当期変動額合計 | H22: 8933 | I22: 8933 | K22: 8933 | Q22: 8933
A23: 当期末残高 | B23: 10000 | C23: 5000 | D23: 0 | E23: 5000 | F23: 5000 | G23: 2000 | H23: 153178 | I23: 160178 | J23: 0 | K23: 175178 | L23: 0 | M23: 0 | N23: 0 | O23: 0 | P23: 0 | Q23: 175178

Sheet 第十七号二
A1: 様式第十七号の二 （第四条、第十条、第十九条の四関係）
A3: 注 記 表
A4: =TEXT(基本データ!C12,"自 ggge年ｍm月dｄ日") -> 自 平成26年04月01日
A5: =TEXT(基本データ!C13,"至 ggge年ｍm月d日") -> 至 平成27年03月31日
I8: （会社名） | J8: =基本データ!C9 -> 株式会社 弥生トレーディング
A10: 注
A11: １ 継続企業の前提に重要な疑義を生じさせるような事象又は状況
A14: ２ 重要な会計方針
A15: (1) 資産の評価基準及び評価方法
A18: (2) 固定資産の減価償却の方法
A21: (3) 引当金の計上基準
A24: (4) 収益及び費用の計上基準
A27: (5) 消費税及び地方消費税に相当する額の会計処理の方法
A30: (6) その他貸借対照表、損益計算書、株主資本等変動計算書、注記表作成のための基本とな
A31: る重要な事項
A34: ３ 会計方針の変更
A37: ４ 表示方法の変更
A40: ５ 会計上の見積りの変更
A43: ６ 誤謬の訂正
A46: ７ 貸借対照表関係
A47: (1) 担保に供している資産及び担保付債務
A48: ① 担保に供している資産の内容及びその金額
A51: ② 担保に係る債務の金額
A54: (2) 保証債務、手形遡求債務、重要な係争事件に係る損害賠償義務等の内容及び金額
A55: 受取手形割引高 千円
A56: 裏書手形譲渡高 千円
A60: (3) 関係会社に対する短期金銭債権及び長期金銭債権並びに短期金銭債務及び長期金銭債務
A63: (4) 取締役、監査役及び執行役との間の取引による取締役、監査役及び執行役に対する金銭
A64: 債権及び金銭債務
A67: (5) 親会社株式の各表示区分別の金額
A70: (6) 工事損失引当金に対応する未成工事支出金の金額
A73: ８ 損益計算書関係
A74: (1) 工事進行基準による完成工事高
A77: (2) 売上高のうち関係会社に対する部分
A80: (3) 売上原価のうち関係会社からの仕入高
A83: (4) 売上原価のうち工事損失引当金繰入額
A86: (5) 関係会社との営業取引以外の取引高
A89: (6) 研究開発費の総額（会計監査人を設置している会社に限る。）
A92: ９ 株主資本等変動計算書関係
A93: (1) 事業年度末日における発行済株式の種類及び数
C94: 普通株式
C95: 1,000株
A96: (2) 事業年度末日における自己株式の種類及び数
A99: (3) 剰余金の配当
A102: (4) 事業年度末において発行している新株予約権の目的となる株式の種類及び数
A105: 10 税効果会計
A108: 11 リースにより使用する固定資産
A111: 12 金融商品関係
A112: (1) 金融商品の状況
A115: (2) 金融商品の時価等
A118: 13 賃貸等不動産関係
A119: (1) 賃貸等不動産の状況
A122: (2) 賃貸等不動産の時価
A125: 14 関連当事者との取引
A126: 取引の内容
B127: 種類 | C127: 会社等の名 | E127: 議決権の所有 | G127: 関係内容 | I127: 科目 | J127: 期末残高
C128: 称又は氏名 | E128: (被所有)割合 | J128: （千円）
A131: ただし、会計監査人を設置している会社は以下の様式により記載する。
A132: (1) 取引の内容
B133: 種類 | C133: 会社等の名 | E133: 議決権の所有 | G133: 関係内容 | I133: 取引の内容 | K133: 取引金額 | M133: 科目 | N133: 期末残高
C134: 称又は氏名 | E134: (被所有)割合 | N134: （千円）
A137: (2) 取引条件及び取引条件の決定方針
A140: (3) 取引条件の変更の内容及び変更が貸借対照表、損益計算書に与える影響の内容
A143: 15 一株当たり情報
A144: (1) 一株当たりの純資産額
C145: 175,178円50銭
A147: (2) 一株当たりの当期純利益又は当期純損失
C148: 8,933円43銭
A150: 16 重要な後発事象
A153: 17 連結配当規制適用の有無
A156: 18 その他

Sheet 勘定科目テーブル
B8: 弥生会計の勘定科目 | C8: 建設業許可申請書の勘定科目 | F8: ※建設業許可申請書の勘定科目
B9: 現金 | C9: 現金預金 （流動資産） | F9: 勘定科目
B10: 当座預金 | C10: 現金預金 （流動資産） | F10: 現金預金 （流動資産）
B11: 普通預金 | C11: 現金預金 （流動資産） | F11: 受取手形 （流動資産）
B12: 定期預金 | C12: 現金預金 （流動資産） | F12: 完成工事未収入金 （流動資産）
B13: 定期積金 | C13: 現金預金 （流動資産） | F13: 有価証券 （流動資産）
B14: 郵便貯金 | C14: 現金預金 （流動資産） | F14: 未成工事支出金 （流動資産）
B15: 受取手形 | C15: 受取手形 （流動資産） | F15: 材料貯蔵品 （流動資産）
B16: 売掛金 | C16: 完成工事未収入金 （流動資産） | F16: 短期貸付金 （流動資産）
B17: 貸倒引当金(売) | C17: 貸倒引当金 （流動資産） | F17: 前払費用 （流動資産）
B18: 有価証券 | C18: その他 （流動資産） | F18: 繰延税金資産 （流動資産）
B19: 前渡金 | C19: その他 （流動資産） | F19: その他 （流動資産）
B20: 立替金 | C20: 前払費用 （流動資産） | F20: 貸倒引当金 （流動資産）
B21: 前払費用 | C21: 前払費用 （流動資産） | F21: 建物・構築物 （有形固定資産）
B22: 未収収益 | C22: その他 （流動資産） | F22: 機械・運搬具 （有形固定資産）
B23: 短期貸付金 | C23: 短期貸付金 （流動資産） | F23: 工具器具・備品 （有形固定資産）
B24: 未収入金 | C24: その他 （流動資産） | F24: 減価償却累計額 （有形固定資産）
B25: 仮払金 | C25: その他 （流動資産） | F25: 土地 （有形固定資産）
B26: 預け金 | C26: その他 （流動資産） | F26: リース資産 （有形固定資産）
B27: 原材料 | C27: 材料貯蔵品 （流動資産） | F27: 建設仮勘定 （有形固定資産）
B28: 仕掛品 | C28: 材料貯蔵品 （流動資産） | F28: その他 （有形固定資産）
B29: 商品 | C29: 材料貯蔵品 （流動資産） | F29: 特許権 （無形固定資産）
B30: 半製品 | C30: 材料貯蔵品 （流動資産） | F30: 借地権 （無形固定資産）
B31: 仮払消費税 | C31: その他 （流動資産） | F31: のれん （無形固定資産）
B32: 仮払消費税等 | C32: その他 （流動資産） | F32: リース資産 （無形固定資産）
B33: 一括償却資産 | C33: その他 （流動資産） | F33: その他 （無形固定資産）
B34: 建物 | C34: 建物・構築物 （有形固定資産） | F34: 投資有価証券 （投資その他の資産）
B35: 附属設備 | C35: 建物・構築物 （有形固定資産） | F35: 関係会社株式・関係会社出資金 （投資その他の資産）
B36: 構築物 | C36: 建物・構築物 （有形固定資産） | F36: 長期貸付金 （投資その他の資産）
B37: 機械装置 | C37: 機械・運搬具 （有形固定資産） | F37: 破産更生債権等 （投資その他の資産）
B38: 車両運搬具 | C38: 機械・運搬具 （有形固定資産） | F38: 長期前払費用 （投資その他の資産）
B39: 工具器具備品 | C39: 工具器具・備品 （有形固定資産） | F39: 繰延税金資産 （投資その他の資産）
B40: 減価償却累計額 | C40: 減価償却累計額 （有形固定資産） | F40: その他 （投資その他の資産）
B41: 土地 | C41: 土地 （有形固定資産） | F41: 貸倒引当金 （投資その他の資産）
B42: 建設仮勘定 | C42: 建設仮勘定 （有形固定資産） | F42: 創立費 （繰延資産）
B43: ソフトウェア | C43: その他 （無形固定資産） | F43: 開業費 （繰延資産）
B44: 関係会社株式 | C44: 関係会社株式・関係会社出資金 （投資その他の資産） | F44: 株式交付費 （繰延資産）
B45: 関係会社出資金 | C45: 関係会社株式・関係会社出資金 （投資その他の資産） | F45: 社債発行費 （繰延資産）
B46: 投資有価証券 | C46: 投資有価証券 （投資その他の資産） | F46: 開発費 （繰延資産）
B47: 出資金 | C47: 投資有価証券 （投資その他の資産） | F47: 支払手形 （流動負債）
B48: 敷金 | C48: その他 （投資その他の資産） | F48: 工事未払金 （流動負債）
B49: 差入保証金 | C49: その他 （投資その他の資産） | F49: 短期借入金 （流動負債）
B50: 長期貸付金 | C50: 長期貸付金 （投資その他の資産） | F50: リース債務 （流動負債）
B51: 長期前払費用 | C51: 長期前払費用 （投資その他の資産） | F51: 未払金 （流動負債）
B52: 預託金 | C52: その他 （投資その他の資産） | F52: 未払費用 （流動負債）
B53: 電話加入権 | C53: その他 （無形固定資産） | F53: 未払法人税等 （流動負債）
B54: 貸倒引当金(他) | C54: 貸倒引当金 （流動資産） | F54: 繰延税金負債 （流動負債）
B55: 支払手形 | C55: 支払手形 （流動負債） | F55: 未成工事受入金 （流動負債）
B56: 買掛金 | C56: 工事未払金 （流動負債） | F56: 預り金 （流動負債）
B57: 短期借入金 | C57: 短期借入金 （流動負債） | F57: 前受収益 （流動負債）
B58: 未払金 | C58: 未払金 （流動負債） | F58: 引当金 （流動負債） | H58: =LEFT(F58,FIND("引",F58,1)-1) -> 
B59: 未払費用 | C59: 未払費用 （流動負債） | F59: その他 （流動負債）
B60: 未払法人税等 | C60: 未払法人税等 （流動負債） | F60: 社債 （固定負債）
B61: 未払消費税等 | C61: 未払金 （流動負債） | F61: 長期借入金 （固定負債）
B62: 前受金 | C62: 未成工事受入金 （流動負債） | F62: リース債務 （固定負債）
B63: 預り金 | C63: 預り金 （流動負債） | F63: 繰延税金負債 （固定負債）
B64: 前受収益 | C64: 前受収益 （流動負債） | F64: 引当金 （固定負債） | H64: =LEFT(F64,FIND("引",F64,1)-1) -> 
B65: 仮受金 | C65: その他 （流動負債） | F65: 負ののれん （固定負債）
B66: 預り保証金 | C66: その他 （流動負債） | F66: その他 （固定負債）
B67: 仮受消費税 | C67: その他 （流動負債） | F67: 資本金 （純資産）
B68: 仮受消費税等 | C68: その他 （流動負債） | F68: 新株式申込証拠金 （純資産）
B69: 長期借入金 | C69: 長期借入金 （固定負債） | F69: 資本準備金 （純資産）
B70: 長期未払金 | C70: その他 （固定負債） | F70: その他資本剰余金 （純資産）
B71: 資本金 | C71: 資本金 （純資産） | F71: 利益剰余金 （純資産）
B72: 資本準備金 | C72: 資本準備金 （純資産） | F72: 利益準備金 （純資産）
B73: 別途積立金 | C73: 別途積立金 （純資産） | F73: 準備金 （純資産） | H73: =LEFT(F73,FIND("準",F73,1)-1) -> 
B74: 利益準備金 | C74: 利益準備金 （純資産） | F74: 別途積立金 （純資産） | H74: =LEFT(F74,FIND("積",F74,1)-1) -> 別途
B75: 繰越利益 | C75: 繰越利益剰余金 （純資産） | F75: 繰越利益剰余金 （純資産）
B76: 売上高 | C76: 完成工事高 （売上高） | F76: 自己株式 （純資産）
B77: 期首商品棚卸高 | C77: 完成工事原価 （売上原価） | F77: 自己株式申込証拠金 （純資産）
B78: 仕入高 | C78: 完成工事原価 （売上原価） | F78: その他有価証券評価差額金 （純資産）
B79: 仕入割戻し高 | C79: 完成工事原価 （売上原価） | F79: 繰延ヘッジ損益 （純資産）
B80: 仕入戻し高 | C80: 完成工事原価 （売上原価） | F80: 土地再評価差額金 （純資産）
B81: 期末商品棚卸高 | C81: 完成工事原価 （売上原価） | F81: 完成工事高 （売上高）
B82: 役員報酬 | C82: 役員報酬 （販管費） | F82: 兼業事業売上高 （売上高）
B83: 役員賞与 | C83: 役員報酬 （販管費） | F83: 完成工事原価 （売上原価）
B84: 給料手当 | C84: 従業員給料手当 （販管費） | F84: 兼業事業売上原価 （売上原価）
B85: 雑給 | C85: 従業員給料手当 （販管費） | F85: 役員報酬 （販管費）
B86: 賞与 | C86: 従業員給料手当 （販管費） | F86: 従業員給料手当 （販管費）
B87: 退職金 | C87: 退職金 （販管費） | F87: 退職金 （販管費）
B88: 法定福利費 | C88: 法定福利費 （販管費） | F88: 法定福利費 （販管費）
B89: 福利厚生費 | C89: 福利厚生費 （販管費） | F89: 福利厚生費 （販管費）
B90: 採用教育費 | C90: 福利厚生費 （販管費） | F90: 修繕維持費 （販管費）
B91: 外注費 | C91: 雑費 （販管費） | F91: 事務用品費 （販管費）
B92: 荷造運賃 | C92: 通信交通費 （販管費） | F92: 通信交通費 （販管費）
B93: 広告宣伝費 | C93: 広告宣伝費 （販管費） | F93: 動力用水光熱費 （販管費）
B94: 交際費 | C94: 交際費 （販管費） | F94: 調査研究費 （販管費）
B95: 会議費 | C95: 雑費 （販管費） | F95: 広告宣伝費 （販管費）
B96: 旅費交通費 | C96: 通信交通費 （販管費） | F96: 貸倒引当金繰入額 （販管費）
B97: 通信費 | C97: 通信交通費 （販管費） | F97: 貸倒損失 （販管費）
B98: 販売手数料 | C98: 雑費 （販管費） | F98: 交際費 （販管費）
B99: 販売促進費 | C99: 広告宣伝費 （販管費） | F99: 寄付金 （販管費）
B100: 消耗品費 | C100: 事務用品費 （販管費） | F100: 地代家賃 （販管費）
B101: 事務用品費 | C101: 事務用品費 （販管費） | F101: 減価償却費 （販管費）
B102: 修繕費 | C102: 修繕維持費 （販管費） | F102: 開発費償却 （販管費）
B103: 水道光熱費 | C103: 動力用水光熱費 （販管費） | F103: 租税公課 （販管費）
B104: 新聞図書費 | C104: 調査研究費 （販管費） | F104: 保険料 （販管費）
B105: 諸会費 | C105: 雑費 （販管費） | F105: 雑費 （販管費）
B106: 支払手数料 | C106: 雑費 （販管費） | F106: 受取利息及び配当金 （営業外利益）
B107: 車両費 | C107: 通信交通費 （販管費） | F107: その他 （営業外利益）
B108: 地代家賃 | C108: 地代家賃 （販管費） | F108: 支払利息 （営業外費用）
B109: 賃借料 | C109: 雑費 （販管費） | F109: 貸倒引当金繰入額 （営業外費用）
B110: リース料 | C110: 雑費 （販管費） | F110: 貸倒損失 （営業外費用）
B111: 保険料 | C111: 保険料 （販管費） | F111: その他 （営業外費用）
B112: 租税公課 | C112: 租税公課 （販管費） | F112: 前期損益修正益 （特別利益）
B113: 支払報酬料 | C113: 雑費 （販管費） | F113: その他 （特別利益）
B114: 寄付金 | C114: 寄付金 （販管費） | F114: 前期損益修正損 （特別損失）
B115: 研究開発費 | C115: 調査研究費 （販管費） | F115: その他 （特別損失）
B116: 減価償却費 | C116: 減価償却費 （販管費） | F116: 法人税、住民税及び事業税 （法人税等）
B117: 貸倒繰入額(販) | C117: 貸倒引当金繰入額 （販管費） | F117: 法人税等調整額 （法人税等）
B118: 貸倒損失(販) | C118: 貸倒損失 （販管費） | F118: 材料費 （製造原価）
B119: 貸倒引当金繰入額(販) | C119: 貸倒引当金繰入額 （販管費） | F119: 労務費 （製造原価）
B120: 顧問料 | C120: 雑費 （販管費） | F120: 労務費（労務外注費該当） （製造原価）
B121: 雑費 | C121: 雑費 （販管費） | F121: 外注費 （製造原価）
B122: 受取利息 | C122: 受取利息及び配当金 （営業外利益） | F122: 経費 （製造原価）
B123: 受取配当金 | C123: 受取利息及び配当金 （営業外利益） | F123: 経費（人件費該当） （製造原価）
B124: 雑収入 | C124: その他 （営業外利益）
B125: 支払利息 | C125: 支払利息 （営業外費用）
B126: 割引料 | C126: 支払利息 （営業外費用）
B127: 手形売却損 | C127: 支払利息 （営業外費用）
B128: 貸倒損失(外) | C128: 貸倒損失 （営業外費用）
B129: 売上割引 | C129: 支払利息 （営業外費用）
B130: 貸倒繰入額(外) | C130: 貸倒引当金繰入額 （営業外費用）
B131: 雑損失 | C131: その他 （営業外費用）
B132: 貸倒引当金戻入額 | C132: その他 （営業外利益）
B133: 法人税、住民税及び事業税 | C133: 法人税、住民税及び事業税 （法人税等）
B134: 法人税･住民税及び事業税 | C134: 法人税、住民税及び事業税 （法人税等）
B135: 法人税等 | C135: 法人税、住民税及び事業税 （法人税等）
B136: [製]材料仕入高 | C136: 材料費 （製造原価）
B137: [製]役員報酬 | C137: 労務費 （製造原価）
B138: [製]給料手当 | C138: 労務費 （製造原価）
B139: [製]雑給 | C139: 労務費 （製造原価）
B140: [製]賞与 | C140: 労務費 （製造原価）
B141: [製]退職金 | C141: 労務費 （製造原価）
B142: [製]法定福利費 | C142: 労務費 （製造原価）
B143: [製]福利厚生費 | C143: 労務費 （製造原価）
B144: [製]外注加工費 | C144: 外注費 （製造原価）
B145: [製]動力費 | C145: 経費 （製造原価）
B146: [製]荷造運賃 | C146: 経費 （製造原価）
B147: [製]会議費 | C147: 経費 （製造原価）
B148: [製]旅費交通費 | C148: 経費 （製造原価）
B149: [製]通信費 | C149: 経費 （製造原価）
B150: [製]消耗品費 | C150: 経費 （製造原価）
B151: [製]事務用品費 | C151: 経費 （製造原価）
B152: [製]消耗工具費 | C152: 経費 （製造原価）
B153: [製]車両費 | C153: 経費 （製造原価）
B154: [製]修繕費 | C154: 経費 （製造原価）
B155: [製]水道光熱費 | C155: 経費 （製造原価）
B156: [製]新聞図書費 | C156: 経費 （製造原価）
B157: [製]諸会費 | C157: 経費 （製造原価）
B158: [製]地代家賃 | C158: 経費 （製造原価）
B159: [製]賃借料 | C159: 経費 （製造原価）
B160: [製]租税公課 | C160: 経費 （製造原価）
B161: [製]保険料 | C161: 経費 （製造原価）
B162: [製]支払報酬料 | C162: 経費 （製造原価）
B163: [製]寄付金 | C163: 経費 （製造原価）
B164: [製]研究開発費 | C164: 経費 （製造原価）
B165: [製]保管料 | C165: 経費 （製造原価）
B166: [製]特許使用料 | C166: 経費 （製造原価）
B167: [製]雑費 | C167: 経費 （製造原価）
B168: [製]期首材料棚卸高 | C168: 経費 （製造原価）
B169: [製]期末材料棚卸高 | C169: 経費 （製造原価）
B170: [製]賃金 | C170: 労務費 （製造原価）
B171: [製]期首仕掛品 | C171: 材料費 （製造原価）
B172: [製]期首半製品 | C172: 材料費 （製造原価）
B173: [製]期末仕掛品 | C173: 材料費 （製造原価）
B174: [製]期末半製品 | C174: 材料費 （製造原価）
B175: [製]減価償却費 | C175: 経費 （製造原価）

Sheet 合計行 (hidden)
A1: [貸借対照表] | B1: 現金･預金合計 | C1: 281589579
A2: [貸借対照表] | B2: 売上債権合計 | C2: 36421772
A3: [貸借対照表] | B3: 有価証券合計 | C3: 0
A4: [貸借対照表] | B4: 棚卸資産合計 | C4: 27927600
A5: [貸借対照表] | B5: 他流動資産合計 | C5: 379563
A6: [貸借対照表] | B6: 流動資産合計 | C6: 346318514
A7: [貸借対照表] | B7: 有形固定資産計 | C7: 45283771
A8: [貸借対照表] | B8: 無形固定資産計 | C8: 150000
A9: [貸借対照表] | B9: 投資その他の資産合計 | C9: 5427720
A10: [貸借対照表] | B10: 固定資産合計 | C10: 50861491
A11: [貸借対照表] | B11: 繰延資産合計 | C11: 0
A12: [貸借対照表] | B12: 資産合計 | C12: 397180005
A13: [貸借対照表] | B13: 仕入債務合計 | C13: 201397637
A14: [貸借対照表] | B14: 他流動負債合計 | C14: 13013412
A15: [貸借対照表] | B15: 流動負債合計 | C15: 214411049
A16: [貸借対照表] | B16: 固定負債合計 | C16: 7590451
A17: [貸借対照表] | B17: 負債合計 | C17: 222001500
A18: [貸借対照表] | B18: 資本金合計 | C18: 10000000
A19: [貸借対照表] | B19: 新株式申込証拠金合計 | C19: 0
A20: [貸借対照表] | B20: 資本準備金合計 | C20: 5000000
A21: [貸借対照表] | B21: その他資本剰余金合計 | C21: 0
A22: [貸借対照表] | B22: 資本剰余金合計 | C22: 5000000
A23: [貸借対照表] | B23: 利益準備金合計 | C23: 5000000
A24: [貸借対照表] | B24: 任意積立金合計 | C24: 2000000
A25: [貸借対照表] | B25: 当期純損益金額 | C25: 8933436
A26: [貸借対照表] | B26: 繰越利益剰余金合計 | C26: 153178505
A27: [貸借対照表] | B27: その他利益剰余金合計 | C27: 155178505
A28: [貸借対照表] | B28: 利益剰余金合計 | C28: 160178505
A29: [貸借対照表] | B29: 自己株式合計 | C29: 0
A30: [貸借対照表] | B30: 自己株式申込証拠金合計 | C30: 0
A31: [貸借対照表] | B31: 株主資本合計 | C31: 175178505
A32: [貸借対照表] | B32: 評価･換算差額等合計 | C32: 0
A33: [貸借対照表] | B33: 新株予約権合計 | C33: 0
A34: [貸借対照表] | B34: 純資産合計 | C34: 175178505
A35: [貸借対照表] | B35: 負債･純資産合計 | C35: 397180005
A36: [損益計算書] | B36: 売上高合計 | C36: 282522104
A37: [損益計算書] | B37: 期首商品棚卸高 | C37: 24500000
A38: [損益計算書] | B38: 当期商品仕入高 | C38: 173596800
A39: [損益計算書] | B39: 合計 | C39: 198096800
A40: [損益計算書] | B40: 期末商品棚卸高 | C40: 24500000
A41: [損益計算書] | B41: 商品売上原価 | C41: 173596800
A42: [損益計算書] | B42: 期首製品棚卸高 | C42: 0
A43: [損益計算書] | B43: 当期製品製造原価 | C43: 37941348
A44: [損益計算書] | B44: 合計 | C44: 37941348
A45: [損益計算書] | B45: 期末製品棚卸高 | C45: 0
A46: [損益計算書] | B46: 製品売上原価 | C46: 37941348
A47: [損益計算書] | B47: 売上原価 | C47: 211538148
A48: [損益計算書] | B48: 売上総損益金額 | C48: 70983956
A49: [損益計算書] | B49: 販売管理費計 | C49: 60068139
A50: [損益計算書] | B50: 営業損益金額 | C50: 10915817
A51: [損益計算書] | B51: 営業外収益合計 | C51: 328133
A52: [損益計算書] | B52: 営業外費用合計 | C52: -1956629
A53: [損益計算書] | B53: 経常損益金額 | C53: 13200579
A54: [損益計算書] | B54: 特別利益合計 | C54: 0
A55: [損益計算書] | B55: 特別損失合計 | C55: 0
A56: [損益計算書] | B56: 税引前当期純損益金額 | C56: 13200579
A57: [損益計算書] | B57: 当期純損益金額 | C57: 8933436
A58: [製造原価報告書] | B58: 合計 | C58: 24770777
A59: [製造原価報告書] | B59: 材料費合計 | C59: 24314177
A60: [製造原価報告書] | B60: 労務費合計 | C60: 5142256
A61: [製造原価報告書] | B61: 製造経費合計 | C61: 8484915
A62: [製造原価報告書] | B62: 総製造費用 | C62: 37941348
A63: [製造原価報告書] | B63: 合計 | C63: 40912348
A64: [製造原価報告書] | B64: 当期製品製造原価 | C64: 37941348

Sheet 集計シート (hidden)
A1: =勘定科目テーブル!F10 -> 現金預金 （流動資産） | B1: =SUMIF(明細行!C:D,A1,明細行!D:D) -> 281589579 | C1: =ROUNDDOWN(B1,-3) -> 281589000 | D1: =C1/1000 -> 281589 | F1: =合計行!B1 -> 現金･預金合計 | G1: =合計行!C1 -> 281589579 | H1: =ROUNDDOWN(G1,-3) -> 281589000 | I1: =H1/1000 -> 281589
A2: =勘定科目テーブル!F11 -> 受取手形 （流動資産） | B2: =SUMIF(明細行!C:D,A2,明細行!D:D) -> 4043649 | C2: =ROUNDDOWN(B2,-3) -> 4043000 | D2: =C2/1000 -> 4043 | F2: =合計行!B2 -> 売上債権合計 | G2: =合計行!C2 -> 36421772 | H2: =ROUNDDOWN(G2,-3) -> 36421000 | I2: =H2/1000 -> 36421
A3: =勘定科目テーブル!F12 -> 完成工事未収入金 （流動資産） | B3: =SUMIF(明細行!C:D,A3,明細行!D:D) -> 32746025 | C3: 32746000 | D3: 32746 | F3: =合計行!B3 -> 有価証券合計 | G3: =合計行!C3 -> 0 | H3: 0 | I3: 0
A4: =勘定科目テーブル!F13 -> 有価証券 （流動資産） | B4: =SUMIF(明細行!C:D,A4,明細行!D:D) -> 0 | C4: 0 | D4: 0 | F4: =合計行!B4 -> 棚卸資産合計 | G4: =合計行!C4 -> 27927600 | H4: 27927000 | I4: 27927
A5: =勘定科目テーブル!F14 -> 未成工事支出金 （流動資産） | B5: =SUMIF(明細行!C:D,A5,明細行!D:D) -> 0 | C5: 0 | D5: 0 | F5: =合計行!B5 -> 他流動資産合計 | G5: =合計行!C5 -> 379563 | H5: 379000 | I5: 379
A6: =勘定科目テーブル!F15 -> 材料貯蔵品 （流動資産） | B6: =SUMIF(明細行!C:D,A6,明細行!D:D) -> 27927600 | C6: 27927000 | D6: 27927 | F6: =合計行!B6 -> 流動資産合計 | G6: =合計行!C6 -> 346318514 | H6: 346318000 | I6: 346318
A7: =勘定科目テーブル!F16 -> 短期貸付金 （流動資産） | B7: =SUMIF(明細行!C:D,A7,明細行!D:D) -> 0 | C7: 0 | D7: 0 | F7: =合計行!B7 -> 有形固定資産計 | G7: =合計行!C7 -> 45283771 | H7: 45283000 | I7: 45283
A8: =勘定科目テーブル!F17 -> 前払費用 （流動資産） | B8: =SUMIF(明細行!C:D,A8,明細行!D:D) -> 258749 | C8: 258000 | D8: 258 | F8: =合計行!B8 -> 無形固定資産計 | G8: =合計行!C8 -> 150000 | H8: 150000 | I8: 150
A9: =勘定科目テーブル!F18 -> 繰延税金資産 （流動資産） | B9: =SUMIF(明細行!C:D,A9,明細行!D:D) -> 0 | C9: 0 | D9: 0 | F9: =合計行!B9 -> 投資その他の資産合計 | G9: =合計行!C9 -> 5427720 | H9: 5427000 | I9: 5427
A10: =勘定科目テーブル!F19 -> その他 （流動資産） | B10: =SUMIF(明細行!C:D,A10,明細行!D:D) -> 245014 | C10: 245000 | D10: 245 | F10: =合計行!B10 -> 固定資産合計 | G10: =合計行!C10 -> 50861491 | H10: 50861000 | I10: 50861
A11: =勘定科目テーブル!F20 -> 貸倒引当金 （流動資産） | B11: =SUMIF(明細行!C:D,A11,明細行!D:D) -> -367902 | C11: =-ROUNDDOWN(B11,-3) -> 367000 | D11: 367 | F11: =合計行!B11 -> 繰延資産合計 | G11: =合計行!C11 -> 0 | H11: 0 | I11: 0
A12: =勘定科目テーブル!F21 -> 建物・構築物 （有形固定資産） | B12: =SUMIF(明細行!C:D,A12,明細行!D:D) -> 19226115 | C12: 19226000 | D12: 19226 | F12: =合計行!B12 -> 資産合計 | G12: =合計行!C12 -> 397180005 | H12: 397180000 | I12: 397180
A13: =勘定科目テーブル!F22 -> 機械・運搬具 （有形固定資産） | B13: =SUMIF(明細行!C:D,A13,明細行!D:D) -> 425130 | C13: 425000 | D13: 425 | F13: =合計行!B13 -> 仕入債務合計 | G13: =合計行!C13 -> 201397637 | H13: 201397000 | I13: 201397
A14: =勘定科目テーブル!F23 -> 工具器具・備品 （有形固定資産） | B14: =SUMIF(明細行!C:D,A14,明細行!D:D) -> 508326 | C14: 508000 | D14: 508 | F14: =合計行!B14 -> 他流動負債合計 | G14: =合計行!C14 -> 13013412 | H14: 13013000 | I14: 13013
A15: =勘定科目テーブル!F24 -> 減価償却累計額 （有形固定資産） | B15: =SUMIF(明細行!C:D,A15,明細行!D:D) -> 0 | C15: 0 | D15: 0 | F15: =合計行!B15 -> 流動負債合計 | G15: =合計行!C15 -> 214411049 | H15: 214411000 | I15: 214411
A16: =勘定科目テーブル!F25 -> 土地 （有形固定資産） | B16: =SUMIF(明細行!C:D,A16,明細行!D:D) -> 25000000 | C16: 25000000 | D16: 25000 | F16: =合計行!B16 -> 固定負債合計 | G16: =合計行!C16 -> 7590451 | H16: 7590000 | I16: 7590
A17: =勘定科目テーブル!F26 -> リース資産 （有形固定資産） | B17: =SUMIF(明細行!C:D,A17,明細行!D:D) -> 0 | C17: 0 | D17: 0 | F17: =合計行!B17 -> 負債合計 | G17: =合計行!C17 -> 222001500 | H17: 222001000 | I17: 222001
A18: =勘定科目テーブル!F27 -> 建設仮勘定 （有形固定資産） | B18: =SUMIF(明細行!C:D,A18,明細行!D:D) -> 0 | C18: 0 | D18: 0 | F18: =合計行!B18 -> 資本金合計 | G18: =合計行!C18 -> 10000000 | H18: 10000000 | I18: 10000
A19: =勘定科目テーブル!F28 -> その他 （有形固定資産） | B19: =SUMIF(明細行!C:D,A19,明細行!D:D) -> 0 | C19: 0 | D19: 0 | F19: =合計行!B19 -> 新株式申込証拠金合計 | G19: =合計行!C19 -> 0 | H19: 0 | I19: 0
A20: =勘定科目テーブル!F29 -> 特許権 （無形固定資産） | B20: =SUMIF(明細行!C:D,A20,明細行!D:D) -> 0 | C20: 0 | D20: 0 | F20: =合計行!B20 -> 資本準備金合計 | G20: =合計行!C20 -> 5000000 | H20: 5000000 | I20: 5000
A21: =勘定科目テーブル!F30 -> 借地権 （無形固定資産） | B21: =SUMIF(明細行!C:D,A21,明細行!D:D) -> 0 | C21: 0 | D21: 0 | F21: =合計行!B21 -> その他資本剰余金合計 | G21: =合計行!C21 -> 0 | H21: 0 | I21: 0
A22: =勘定科目テーブル!F31 -> のれん （無形固定資産） | B22: =SUMIF(明細行!C:D,A22,明細行!D:D) -> 0 | C22: 0 | D22: 0 | F22: =合計行!B22 -> 資本剰余金合計 | G22: =合計行!C22 -> 5000000 | H22: 5000000 | I22: 5000
A23: =勘定科目テーブル!F32 -> リース資産 （無形固定資産） | B23: =SUMIF(明細行!C:D,A23,明細行!D:D) -> 0 | C23: 0 | D23: 0 | F23: =合計行!B23 -> 利益準備金合計 | G23: =合計行!C23 -> 5000000 | H23: 5000000 | I23: 5000
A24: =勘定科目テーブル!F33 -> その他 （無形固定資産） | B24: =SUMIF(明細行!C:D,A24,明細行!D:D) -> 150000 | C24: 150000 | D24: 150 | F24: =合計行!B24 -> 任意積立金合計 | G24: =合計行!C24 -> 2000000 | H24: 2000000 | I24: 2000
A25: =勘定科目テーブル!F34 -> 投資有価証券 （投資その他の資産） | B25: =SUMIF(明細行!C:D,A25,明細行!D:D) -> 3700000 | C25: 3700000 | D25: 3700 | F25: =合計行!B25 -> 当期純損益金額 | G25: =合計行!C25 -> 8933436 | H25: 8933000 | I25: 8933
A26: =勘定科目テーブル!F35 -> 関係会社株式・関係会社出資金 （投資その他の資産） | B26: =SUMIF(明細行!C:D,A26,明細行!D:D) -> 1700000 | C26: 1700000 | D26: 1700 | F26: =合計行!B26 -> 繰越利益剰余金合計 | G26: =合計行!C26 -> 153178505 | H26: 153178000 | I26: 153178
A27: =勘定科目テーブル!F36 -> 長期貸付金 （投資その他の資産） | B27: =SUMIF(明細行!C:D,A27,明細行!D:D) -> 0 | C27: 0 | D27: 0 | F27: =合計行!B27 -> その他利益剰余金合計 | G27: =合計行!C27 -> 155178505 | H27: 155178000 | I27: 155178
A28: =勘定科目テーブル!F37 -> 破産更生債権等 （投資その他の資産） | B28: =SUMIF(明細行!C:D,A28,明細行!D:D) -> 0 | C28: 0 | D28: 0 | F28: =合計行!B28 -> 利益剰余金合計 | G28: =合計行!C28 -> 160178505 | H28: 160178000 | I28: 160178
A29: =勘定科目テーブル!F38 -> 長期前払費用 （投資その他の資産） | B29: =SUMIF(明細行!C:D,A29,明細行!D:D) -> 0 | C29: 0 | D29: 0 | F29: =合計行!B29 -> 自己株式合計 | G29: =合計行!C29 -> 0 | H29: =-ROUNDDOWN(G29,-3) -> 0 | I29: 0
A30: =勘定科目テーブル!F39 -> 繰延税金資産 （投資その他の資産） | B30: =SUMIF(明細行!C:D,A30,明細行!D:D) -> 0 | C30: 0 | D30: 0 | F30: =合計行!B30 -> 自己株式申込証拠金合計 | G30: =合計行!C30 -> 0 | H30: 0 | I30: 0
A31: =勘定科目テーブル!F40 -> その他 （投資その他の資産） | B31: =SUMIF(明細行!C:D,A31,明細行!D:D) -> 27720 | C31: 27000 | D31: 27 | F31: =合計行!B31 -> 株主資本合計 | G31: =合計行!C31 -> 175178505 | H31: 175178000 | I31: 175178
A32: =勘定科目テーブル!F41 -> 貸倒引当金 （投資その他の資産） | B32: =SUMIF(明細行!C:D,A32,明細行!D:D) -> 0 | C32: =-ROUNDDOWN(B32,-3) -> 0 | D32: 0 | F32: =合計行!B32 -> 評価･換算差額等合計 | G32: =合計行!C32 -> 0 | H32: 0 | I32: 0
A33: =勘定科目テーブル!F42 -> 創立費 （繰延資産） | B33: =SUMIF(明細行!C:D,A33,明細行!D:D) -> 0 | C33: 0 | D33: 0 | F33: =合計行!B33 -> 新株予約権合計 | G33: =合計行!C33 -> 0 | H33: 0 | I33: 0
A34: =勘定科目テーブル!F43 -> 開業費 （繰延資産） | B34: =SUMIF(明細行!C:D,A34,明細行!D:D) -> 0 | C34: 0 | D34: 0 | F34: =合計行!B34 -> 純資産合計 | G34: =合計行!C34 -> 175178505 | H34: 175178000 | I34: 175178
A35: =勘定科目テーブル!F44 -> 株式交付費 （繰延資産） | B35: =SUMIF(明細行!C:D,A35,明細行!D:D) -> 0 | C35: 0 | D35: 0 | F35: =合計行!B35 -> 負債･純資産合計 | G35: =合計行!C35 -> 397180005 | H35: 397180000 | I35: 397180
A36: =勘定科目テーブル!F45 -> 社債発行費 （繰延資産） | B36: =SUMIF(明細行!C:D,A36,明細行!D:D) -> 0 | C36: 0 | D36: 0 | F36: =合計行!B36 -> 売上高合計 | G36: =合計行!C36 -> 282522104 | H36: 282522000 | I36: 282522
A37: =勘定科目テーブル!F46 -> 開発費 （繰延資産） | B37: =SUMIF(明細行!C:D,A37,明細行!D:D) -> 0 | C37: 0 | D37: 0 | F37: =合計行!B37 -> 期首商品棚卸高 | G37: =合計行!C37 -> 24500000 | H37: 24500000 | I37: 24500
A38: =勘定科目テーブル!F47 -> 支払手形 （流動負債） | B38: =SUMIF(明細行!C:D,A38,明細行!D:D) -> 27713142 | C38: 27713000 | D38: 27713 | F38: =合計行!B38 -> 当期商品仕入高 | G38: =合計行!C38 -> 173596800 | H38: 173596000 | I38: 173596
A39: =勘定科目テーブル!F48 -> 工事未払金 （流動負債） | B39: =SUMIF(明細行!C:D,A39,明細行!D:D) -> 173684495 | C39: 173684000 | D39: 173684 | F39: =合計行!B39 -> 合計 | G39: =合計行!C39 -> 198096800 | H39: 198096000 | I39: 198096
A40: =勘定科目テーブル!F49 -> 短期借入金 （流動負債） | B40: =SUMIF(明細行!C:D,A40,明細行!D:D) -> 6000000 | C40: 6000000 | D40: 6000 | F40: =合計行!B40 -> 期末商品棚卸高 | G40: =合計行!C40 -> 24500000 | H40: 24500000 | I40: 24500
A41: =勘定科目テーブル!F50 -> リース債務 （流動負債） | B41: =SUMIF(明細行!C:D,A41,明細行!D:D) -> 0 | C41: 0 | D41: 0 | F41: =合計行!B41 -> 商品売上原価 | G41: =合計行!C41 -> 173596800 | H41: 173596000 | I41: 173596
A42: =勘定科目テーブル!F51 -> 未払金 （流動負債） | B42: =SUMIF(明細行!C:D,A42,明細行!D:D) -> 3009700 | C42: 3009000 | D42: 3009 | F42: =合計行!B42 -> 期首製品棚卸高 | G42: =合計行!C42 -> 0 | H42: 0 | I42: 0
A43: =勘定科目テーブル!F52 -> 未払費用 （流動負債） | B43: =SUMIF(明細行!C:D,A43,明細行!D:D) -> 0 | C43: 0 | D43: 0 | F43: =合計行!B43 -> 当期製品製造原価 | G43: =合計行!C43 -> 37941348 | H43: 37941000 | I43: 37941
A44: =勘定科目テーブル!F53 -> 未払法人税等 （流動負債） | B44: =SUMIF(明細行!C:D,A44,明細行!D:D) -> 1614500 | C44: 1614000 | D44: 1614 | F44: =合計行!B44 -> 合計 | G44: =合計行!C44 -> 37941348 | H44: 37941000 | I44: 37941
A45: =勘定科目テーブル!F54 -> 繰延税金負債 （流動負債） | B45: =SUMIF(明細行!C:D,A45,明細行!D:D) -> 0 | C45: 0 | D45: 0 | F45: =合計行!B45 -> 期末製品棚卸高 | G45: =合計行!C45 -> 0 | H45: 0 | I45: 0
A46: =勘定科目テーブル!F55 -> 未成工事受入金 （流動負債） | B46: =SUMIF(明細行!C:D,A46,明細行!D:D) -> 0 | C46: 0 | D46: 0 | F46: =合計行!B46 -> 製品売上原価 | G46: =合計行!C46 -> 37941348 | H46: 37941000 | I46: 37941
A47: =勘定科目テーブル!F56 -> 預り金 （流動負債） | B47: =SUMIF(明細行!C:D,A47,明細行!D:D) -> 2389212 | C47: 2389000 | D47: 2389 | F47: =合計行!B47 -> 売上原価 | G47: =合計行!C47 -> 211538148 | H47: 211538000 | I47: 211538
A48: =勘定科目テーブル!F57 -> 前受収益 （流動負債） | B48: =SUMIF(明細行!C:D,A48,明細行!D:D) -> 0 | C48: 0 | D48: 0 | F48: =合計行!B48 -> 売上総損益金額 | G48: =合計行!C48 -> 70983956 | H48: 70983000 | I48: 70983
A49: =勘定科目テーブル!F58 -> 引当金 （流動負債） | B49: =SUMIF(明細行!C:D,A49,明細行!D:D) -> 0 | C49: 0 | D49: 0 | F49: =合計行!B49 -> 販売管理費計 | G49: =合計行!C49 -> 60068139 | H49: 60068000 | I49: 60068
A50: =勘定科目テーブル!F59 -> その他 （流動負債） | B50: =SUMIF(明細行!C:D,A50,明細行!D:D) -> 0 | C50: 0 | D50: 0 | F50: =合計行!B50 -> 営業損益金額 | G50: =合計行!C50 -> 10915817 | H50: 10915000 | I50: 10915
A51: =勘定科目テーブル!F60 -> 社債 （固定負債） | B51: =SUMIF(明細行!C:D,A51,明細行!D:D) -> 0 | C51: 0 | D51: 0 | F51: =合計行!B51 -> 営業外収益合計 | G51: =合計行!C51 -> 328133 | H51: 328000 | I51: 328
A52: =勘定科目テーブル!F61 -> 長期借入金 （固定負債） | B52: =SUMIF(明細行!C:D,A52,明細行!D:D) -> 7590451 | C52: 7590000 | D52: 7590 | F52: =合計行!B52 -> 営業外費用合計 | G52: =合計行!C52 -> -1956629 | H52: -1956000 | I52: -1956
A53: =勘定科目テーブル!F62 -> リース債務 （固定負債） | B53: =SUMIF(明細行!C:D,A53,明細行!D:D) -> 0 | C53: 0 | D53: 0 | F53: =合計行!B53 -> 経常損益金額 | G53: =合計行!C53 -> 13200579 | H53: 13200000 | I53: 13200
A54: =勘定科目テーブル!F63 -> 繰延税金負債 （固定負債） | B54: =SUMIF(明細行!C:D,A54,明細行!D:D) -> 0 | C54: 0 | D54: 0 | F54: =合計行!B54 -> 特別利益合計 | G54: =合計行!C54 -> 0 | H54: 0 | I54: 0
A55: =勘定科目テーブル!F64 -> 引当金 （固定負債） | B55: =SUMIF(明細行!C:D,A55,明細行!D:D) -> 0 | C55: 0 | D55: 0 | F55: =合計行!B55 -> 特別損失合計 | G55: =合計行!C55 -> 0 | H55: 0 | I55: 0
A56: =勘定科目テーブル!F65 -> 負ののれん （固定負債） | B56: =SUMIF(明細行!C:D,A56,明細行!D:D) -> 0 | C56: 0 | D56: 0 | F56: =合計行!B56 -> 税引前当期純損益金額 | G56: =合計行!C56 -> 13200579 | H56: 13200000 | I56: 13200
A57: =勘定科目テーブル!F66 -> その他 （固定負債） | B57: =SUMIF(明細行!C:D,A57,明細行!D:D) -> 0 | C57: 0 | D57: 0 | F57: =合計行!B57 -> 当期純損益金額 | G57: =合計行!C57 -> 8933436 | H57: 8933000 | I57: 8933
A58: =勘定科目テーブル!F69 -> 資本準備金 （純資産） | B58: =SUMIF(明細行!C:D,A58,明細行!D:D) -> 5000000 | C58: 5000000 | D58: 5000 | F58: =合計行!B58 -> 合計 | G58: =合計行!C58 -> 24770777 | H58: 24770000 | I58: 24770
A59: =勘定科目テーブル!F70 -> その他資本剰余金 （純資産） | B59: =SUMIF(明細行!C:D,A59,明細行!D:D) -> 0 | C59: 0 | D59: 0 | F59: =合計行!B59 -> 材料費合計 | G59: =合計行!C59 -> 24314177 | H59: 24314000 | I59: 24314
A60: =勘定科目テーブル!F71 -> 利益剰余金 （純資産） | B60: =SUMIF(明細行!C:D,A60,明細行!D:D) -> 0 | C60: 0 | D60: 0 | F60: =合計行!B60 -> 労務費合計 | G60: =合計行!C60 -> 5142256 | H60: 5142000 | I60: 5142
A61: =勘定科目テーブル!F72 -> 利益準備金 （純資産） | B61: =SUMIF(明細行!C:D,A61,明細行!D:D) -> 5000000 | C61: 5000000 | D61: 5000 | F61: =合計行!B61 -> 製造経費合計 | G61: =合計行!C61 -> 8484915 | H61: 8484000 | I61: 8484
A62: =勘定科目テーブル!F73 -> 準備金 （純資産） | B62: =SUMIF(明細行!C:D,A62,明細行!D:D) -> 0 | C62: 0 | D62: 0 | F62: =合計行!B62 -> 総製造費用 | G62: =合計行!C62 -> 37941348 | H62: 37941000 | I62: 37941
A63: =勘定科目テーブル!F74 -> 別途積立金 （純資産） | B63: =SUMIF(明細行!C:D,A63,明細行!D:D) -> 2000000 | C63: 2000000 | D63: 2000 | F63: =合計行!B63 -> 合計 | G63: =合計行!C63 -> 40912348 | H63: 40912000 | I63: 40912
A64: =勘定科目テーブル!F75 -> 繰越利益剰余金 （純資産） | B64: =SUMIF(明細行!C:D,A64,明細行!D:D) -> 144245069 | C64: =ROUNDDOWN(B64,-3) -> 144245000 | D64: =C64/1000 -> 144245 | F64: =合計行!B64 -> 当期製品製造原価 | G64: =合計行!C64 -> 37941348 | H64: 37941000 | I64: 37941
A65: =勘定科目テーブル!F76 -> 自己株式 （純資産） | B65: =SUMIF(明細行!C:D,A65,明細行!D:D) -> 0 | C65: 0 | D65: 0
A66: =勘定科目テーブル!F77 -> 自己株式申込証拠金 （純資産） | B66: =SUMIF(明細行!C:D,A66,明細行!D:D) -> 0 | C66: 0 | D66: 0
A67: =勘定科目テーブル!F78 -> その他有価証券評価差額金 （純資産） | B67: =SUMIF(明細行!C:D,A67,明細行!D:D) -> 0 | C67: 0 | D67: 0
A68: =勘定科目テーブル!F79 -> 繰延ヘッジ損益 （純資産） | B68: =SUMIF(明細行!C:D,A68,明細行!D:D) -> 0 | C68: 0 | D68: 0
A69: =勘定科目テーブル!F80 -> 土地再評価差額金 （純資産） | B69: =SUMIF(明細行!C:D,A69,明細行!D:D) -> 0 | C69: 0 | D69: 0
A70: =勘定科目テーブル!F81 -> 完成工事高 （売上高） | B70: =SUMIF(明細行!C:D,A70,明細行!D:D) -> 282522104 | C70: 282522000 | D70: 282522
A71: =勘定科目テーブル!F82 -> 兼業事業売上高 （売上高） | B71: =SUMIF(明細行!C:D,A71,明細行!D:D) -> 0 | C71: 0 | D71: 0
A72: =勘定科目テーブル!F83 -> 完成工事原価 （売上原価） | B72: =SUMIF(明細行!C:D,A72,明細行!D:D) -> 222985692 | C72: 222985000 | D72: 222985
A73: =勘定科目テーブル!F84 -> 兼業事業売上原価 （売上原価） | B73: =SUMIF(明細行!C:D,A73,明細行!D:D) -> 0 | C73: 0 | D73: 0
A74: =勘定科目テーブル!F85 -> 役員報酬 （販管費） | B74: =SUMIF(明細行!C:D,A74,明細行!D:D) -> 9600000 | C74: 9600000 | D74: 9600
A75: =勘定科目テーブル!F86 -> 従業員給料手当 （販管費） | B75: =SUMIF(明細行!C:D,A75,明細行!D:D) -> 20318500 | C75: 20318000 | D75: 20318
A76: =勘定科目テーブル!F87 -> 退職金 （販管費） | B76: =SUMIF(明細行!C:D,A76,明細行!D:D) -> 0 | C76: 0 | D76: 0
A77: =勘定科目テーブル!F88 -> 法定福利費 （販管費） | B77: =SUMIF(明細行!C:D,A77,明細行!D:D) -> 2313764 | C77: 2313000 | D77: 2313
A78: =勘定科目テーブル!F89 -> 福利厚生費 （販管費） | B78: =SUMIF(明細行!C:D,A78,明細行!D:D) -> 1067698 | C78: 1067000 | D78: 1067
A79: =勘定科目テーブル!F90 -> 修繕維持費 （販管費） | B79: =SUMIF(明細行!C:D,A79,明細行!D:D) -> 208841 | C79: 208000 | D79: 208
A80: =勘定科目テーブル!F91 -> 事務用品費 （販管費） | B80: =SUMIF(明細行!C:D,A80,明細行!D:D) -> 319668 | C80: 319000 | D80: 319
A81: =勘定科目テーブル!F92 -> 通信交通費 （販管費） | B81: =SUMIF(明細行!C:D,A81,明細行!D:D) -> 8809450 | C81: 8809000 | D81: 8809
A82: =勘定科目テーブル!F93 -> 動力用水光熱費 （販管費） | B82: =SUMIF(明細行!C:D,A82,明細行!D:D) -> 1151279 | C82: 1151000 | D82: 1151
A83: =勘定科目テーブル!F94 -> 調査研究費 （販管費） | B83: =SUMIF(明細行!C:D,A83,明細行!D:D) -> 0 | C83: 0 | D83: 0
A84: =勘定科目テーブル!F95 -> 広告宣伝費 （販管費） | B84: =SUMIF(明細行!C:D,A84,明細行!D:D) -> 4899538 | C84: 4899000 | D84: 4899
A85: =勘定科目テーブル!F96 -> 貸倒引当金繰入額 （販管費） | B85: =SUMIF(明細行!C:D,A85,明細行!D:D) -> 367902 | C85: 367000 | D85: 367
A86: =勘定科目テーブル!F97 -> 貸倒損失 （販管費） | B86: =SUMIF(明細行!C:D,A86,明細行!D:D) -> 0 | C86: 0 | D86: 0
A87: =勘定科目テーブル!F98 -> 交際費 （販管費） | B87: =SUMIF(明細行!C:D,A87,明細行!D:D) -> 1126931 | C87: 1126000 | D87: 1126
A88: =勘定科目テーブル!F99 -> 寄付金 （販管費） | B88: =SUMIF(明細行!C:D,A88,明細行!D:D) -> 0 | C88: 0 | D88: 0
A89: =勘定科目テーブル!F100 -> 地代家賃 （販管費） | B89: =SUMIF(明細行!C:D,A89,明細行!D:D) -> 6788909 | C89: 6788000 | D89: 6788
A90: =勘定科目テーブル!F101 -> 減価償却費 （販管費） | B90: =SUMIF(明細行!C:D,A90,明細行!D:D) -> 828913 | C90: 828000 | D90: 828
A91: =勘定科目テーブル!F102 -> 開発費償却 （販管費） | B91: =SUMIF(明細行!C:D,A91,明細行!D:D) -> 0 | C91: 0 | D91: 0
A92: =勘定科目テーブル!F103 -> 租税公課 （販管費） | B92: =SUMIF(明細行!C:D,A92,明細行!D:D) -> 218400 | C92: 218000 | D92: 218
A93: =勘定科目テーブル!F104 -> 保険料 （販管費） | B93: =SUMIF(明細行!C:D,A93,明細行!D:D) -> 1201258 | C93: 1201000 | D93: 1201
A94: =勘定科目テーブル!F105 -> 雑費 （販管費） | B94: =SUMIF(明細行!C:D,A94,明細行!D:D) -> 847088 | C94: 847000 | D94: 847
A95: =勘定科目テーブル!F106 -> 受取利息及び配当金 （営業外利益） | B95: =SUMIF(明細行!C:D,A95,明細行!D:D) -> 13228 | C95: 13000 | D95: 13
A96: =勘定科目テーブル!F107 -> その他 （営業外利益） | B96: =SUMIF(明細行!C:D,A96,明細行!D:D) -> 314905 | C96: 314000 | D96: 314
A97: =勘定科目テーブル!F108 -> 支払利息 （営業外費用） | B97: =SUMIF(明細行!C:D,A97,明細行!D:D) -> 283207 | C97: 283000 | D97: 283
A98: =勘定科目テーブル!F109 -> 貸倒引当金繰入額 （営業外費用） | B98: =SUMIF(明細行!C:D,A98,明細行!D:D) -> 0 | C98: 0 | D98: 0
A99: =勘定科目テーブル!F110 -> 貸倒損失 （営業外費用） | B99: =SUMIF(明細行!C:D,A99,明細行!D:D) -> 0 | C99: 0 | D99: 0
A100: =勘定科目テーブル!F111 -> その他 （営業外費用） | B100: =SUMIF(明細行!C:D,A100,明細行!D:D) -> -2239836 | C100: -2239000 | D100: -2239
A101: =勘定科目テーブル!F112 -> 前期損益修正益 （特別利益） | B101: =SUMIF(明細行!C:D,A101,明細行!D:D) -> 0 | C101: 0 | D101: 0
A102: =勘定科目テーブル!F113 -> その他 （特別利益） | B102: =SUMIF(明細行!C:D,A102,明細行!D:D) -> 0 | C102: 0 | D102: 0
A103: =勘定科目テーブル!F114 -> 前期損益修正損 （特別損失） | B103: =SUMIF(明細行!C:D,A103,明細行!D:D) -> 0 | C103: 0 | D103: 0
A104: =勘定科目テーブル!F115 -> その他 （特別損失） | B104: =SUMIF(明細行!C:D,A104,明細行!D:D) -> 0 | C104: 0 | D104: 0
A105: =勘定科目テーブル!F116 -> 法人税、住民税及び事業税 （法人税等） | B105: =SUMIF(明細行!C:D,A105,明細行!D:D) -> 4267143 | C105: 4267000 | D105: 4267
A106: =勘定科目テーブル!F117 -> 法人税等調整額 （法人税等） | B106: =SUMIF(明細行!C:D,A106,明細行!D:D) -> 0 | C106: 0 | D106: 0
A107: =勘定科目テーブル!F118 -> 材料費 （製造原価） | B107: =SUMIF(明細行!C:D,A107,明細行!D:D) -> 30256177 | C107: 30256000 | D107: 30256
A108: =勘定科目テーブル!F119 -> 労務費 （製造原価） | B108: =SUMIF(明細行!C:D,A108,明細行!D:D) -> 5142256 | C108: 5142000 | D108: 5142
A109: =勘定科目テーブル!F120 -> 労務費（労務外注費該当） （製造原価） | B109: =SUMIF(明細行!C:D,A109,明細行!D:D) -> 0 | C109: 0 | D109: 0
A110: =勘定科目テーブル!F121 -> 外注費 （製造原価） | B110: =SUMIF(明細行!C:D,A110,明細行!D:D) -> 4596766 | C110: 4596000 | D110: 4596
A111: =勘定科目テーブル!F122 -> 経費 （製造原価） | B111: =SUMIF(明細行!C:D,A111,明細行!D:D) -> 4801349 | C111: 4801000 | D111: 4801
A112: =勘定科目テーブル!F123 -> 経費（人件費該当） （製造原価） | B112: =SUMIF(明細行!C:D,A112,明細行!D:D) -> 0 | C112: 0 | D112: 0
A113: =勘定科目テーブル!F124 -> 0 | B113: =SUMIF(明細行!C:D,A113,明細行!D:D) -> 0 | C113: 0 | D113: 0
A114: =勘定科目テーブル!F125 -> 0 | B114: =SUMIF(明細行!C:D,A114,明細行!D:D) -> 0 | C114: 0 | D114: 0
A115: =勘定科目テーブル!F126 -> 0 | B115: =SUMIF(明細行!C:D,A115,明細行!D:D) -> 0 | C115: 0 | D115: 0
A116: =勘定科目テーブル!F127 -> 0 | B116: =SUMIF(明細行!C:D,A116,明細行!D:D) -> 0 | C116: 0 | D116: 0
A117: =勘定科目テーブル!F128 -> 0 | B117: =SUMIF(明細行!C:D,A117,明細行!D:D) -> 0 | C117: 0 | D117: 0
A118: =勘定科目テーブル!F129 -> 0 | B118: =SUMIF(明細行!C:D,A118,明細行!D:D) -> 0 | C118: 0 | D118: 0
A119: =勘定科目テーブル!F130 -> 0 | B119: =SUMIF(明細行!C:D,A119,明細行!D:D) -> 0 | C119: 0 | D119: 0
A120: =勘定科目テーブル!F131 -> 0 | B120: =SUMIF(明細行!C:D,A120,明細行!D:D) -> 0 | C120: 0 | D120: 0
A121: =勘定科目テーブル!F132 -> 0 | B121: =SUMIF(明細行!C:D,A121,明細行!D:D) -> 0 | C121: 0 | D121: 0
A122: =勘定科目テーブル!F133 -> 0 | B122: =SUMIF(明細行!C:D,A122,明細行!D:D) -> 0 | C122: 0 | D122: 0
A123: =勘定科目テーブル!F134 -> 0 | B123: =SUMIF(明細行!C:D,A123,明細行!D:D) -> 0 | C123: 0 | D123: 0
A124: =勘定科目テーブル!F135 -> 0 | B124: =SUMIF(明細行!C:D,A124,明細行!D:D) -> 0 | C124: 0 | D124: 0
A125: =勘定科目テーブル!F136 -> 0 | B125: =SUMIF(明細行!C:D,A125,明細行!D:D) -> 0 | C125: 0 | D125: 0
A126: =勘定科目テーブル!F137 -> 0 | B126: =SUMIF(明細行!C:D,A126,明細行!D:D) -> 0 | C126: 0 | D126: 0
A127: =勘定科目テーブル!F138 -> 0 | B127: =SUMIF(明細行!C:D,A127,明細行!D:D) -> 0 | C127: 0 | D127: 0
A128: =勘定科目テーブル!F139 -> 0 | B128: =SUMIF(明細行!C:D,A128,明細行!D:D) -> 0 | C128: =ROUNDDOWN(B128,-3) -> 0 | D128: =C128/1000 -> 0
A129: =勘定科目テーブル!F140 -> 0 | B129: =SUMIF(明細行!C:D,A129,明細行!D:D) -> 0 | C129: 0 | D129: 0
A130: =勘定科目テーブル!F141 -> 0 | B130: =SUMIF(明細行!C:D,A130,明細行!D:D) -> 0 | C130: 0 | D130: 0
A131: =勘定科目テーブル!F142 -> 0 | B131: =SUMIF(明細行!C:D,A131,明細行!D:D) -> 0 | C131: 0 | D131: 0
A132: =勘定科目テーブル!F143 -> 0 | B132: =SUMIF(明細行!C:D,A132,明細行!D:D) -> 0 | C132: 0 | D132: 0
A133: =勘定科目テーブル!F144 -> 0 | B133: =SUMIF(明細行!C:D,A133,明細行!D:D) -> 0 | C133: 0 | D133: 0
A134: =勘定科目テーブル!F145 -> 0 | B134: =SUMIF(明細行!C:D,A134,明細行!D:D) -> 0 | C134: 0 | D134: 0
A135: =勘定科目テーブル!F146 -> 0 | B135: =SUMIF(明細行!C:D,A135,明細行!D:D) -> 0 | C135: 0 | D135: 0
A136: =勘定科目テーブル!F147 -> 0 | B136: =SUMIF(明細行!C:D,A136,明細行!D:D) -> 0 | C136: 0 | D136: 0
A137: =勘定科目テーブル!F148 -> 0 | B137: =SUMIF(明細行!C:D,A137,明細行!D:D) -> 0 | C137: 0 | D137: 0
A138: =勘定科目テーブル!F149 -> 0 | B138: =SUMIF(明細行!C:D,A138,明細行!D:D) -> 0 | C138: 0 | D138: 0
A139: =勘定科目テーブル!F150 -> 0 | B139: =SUMIF(明細行!C:D,A139,明細行!D:D) -> 0 | C139: 0 | D139: 0
A140: =勘定科目テーブル!F151 -> 0 | B140: =SUMIF(明細行!C:D,A140,明細行!D:D) -> 0 | C140: 0 | D140: 0
A141: =勘定科目テーブル!F152 -> 0 | B141: =SUMIF(明細行!C:D,A141,明細行!D:D) -> 0 | C141: 0 | D141: 0
A142: =勘定科目テーブル!F153 -> 0 | B142: =SUMIF(明細行!C:D,A142,明細行!D:D) -> 0 | C142: 0 | D142: 0
A143: =勘定科目テーブル!F154 -> 0 | B143: =SUMIF(明細行!C:D,A143,明細行!D:D) -> 0 | C143: 0 | D143: 0
A144: =勘定科目テーブル!F155 -> 0 | B144: =SUMIF(明細行!C:D,A144,明細行!D:D) -> 0 | C144: 0 | D144: 0
A145: =勘定科目テーブル!F156 -> 0 | B145: =SUMIF(明細行!C:D,A145,明細行!D:D) -> 0 | C145: 0 | D145: 0
A146: =勘定科目テーブル!F157 -> 0 | B146: =SUMIF(明細行!C:D,A146,明細行!D:D) -> 0 | C146: 0 | D146: 0
A147: =勘定科目テーブル!F158 -> 0 | B147: =SUMIF(明細行!C:D,A147,明細行!D:D) -> 0 | C147: 0 | D147: 0
A148: =勘定科目テーブル!F159 -> 0 | B148: =SUMIF(明細行!C:D,A148,明細行!D:D) -> 0 | C148: 0 | D148: 0
A149: =勘定科目テーブル!F160 -> 0 | B149: =SUMIF(明細行!C:D,A149,明細行!D:D) -> 0 | C149: 0 | D149: 0
A150: =勘定科目テーブル!F161 -> 0 | B150: =SUMIF(明細行!C:D,A150,明細行!D:D) -> 0 | C150: 0 | D150: 0
A151: =勘定科目テーブル!F162 -> 0 | B151: =SUMIF(明細行!C:D,A151,明細行!D:D) -> 0 | C151: 0 | D151: 0
A152: =勘定科目テーブル!F163 -> 0 | B152: =SUMIF(明細行!C:D,A152,明細行!D:D) -> 0 | C152: 0 | D152: 0
A153: =勘定科目テーブル!F164 -> 0 | B153: =SUMIF(明細行!C:D,A153,明細行!D:D) -> 0 | C153: 0 | D153: 0
A154: =勘定科目テーブル!F165 -> 0 | B154: =SUMIF(明細行!C:D,A154,明細行!D:D) -> 0 | C154: 0 | D154: 0
A155: =勘定科目テーブル!F166 -> 0 | B155: =SUMIF(明細行!C:D,A155,明細行!D:D) -> 0 | C155: 0 | D155: 0
A156: =勘定科目テーブル!F167 -> 0 | B156: =SUMIF(明細行!C:D,A156,明細行!D:D) -> 0 | C156: 0 | D156: 0
A157: =勘定科目テーブル!F168 -> 0 | B157: =SUMIF(明細行!C:D,A157,明細行!D:D) -> 0 | C157: 0 | D157: 0
A158: =勘定科目テーブル!F169 -> 0 | B158: =SUMIF(明細行!C:D,A158,明細行!D:D) -> 0 | C158: 0 | D158: 0
A159: =勘定科目テーブル!F170 -> 0 | B159: =SUMIF(明細行!C:D,A159,明細行!D:D) -> 0 | C159: 0 | D159: 0
A160: =勘定科目テーブル!F171 -> 0 | B160: =SUMIF(明細行!C:D,A160,明細行!D:D) -> 0 | C160: 0 | D160: 0
A161: =勘定科目テーブル!F172 -> 0 | B161: =SUMIF(明細行!C:D,A161,明細行!D:D) -> 0 | C161: 0 | D161: 0
A162: =勘定科目テーブル!F173 -> 0 | B162: =SUMIF(明細行!C:D,A162,明細行!D:D) -> 0 | C162: 0 | D162: 0
A163: =勘定科目テーブル!F174 -> 0 | B163: =SUMIF(明細行!C:D,A163,明細行!D:D) -> 0 | C163: 0 | D163: 0
A164: =勘定科目テーブル!F175 -> 0 | B164: =SUMIF(明細行!C:D,A164,明細行!D:D) -> 0 | C164: 0 | D164: 0
A165: =勘定科目テーブル!F176 -> 0 | B165: =SUMIF(明細行!C:D,A165,明細行!D:D) -> 0 | C165: 0 | D165: 0
A166: =勘定科目テーブル!F177 -> 0 | B166: =SUMIF(明細行!C:D,A166,明細行!D:D) -> 0 | C166: 0 | D166: 0
A167: =勘定科目テーブル!F178 -> 0 | B167: =SUMIF(明細行!C:D,A167,明細行!D:D) -> 0 | C167: 0 | D167: 0
A168: =勘定科目テーブル!F179 -> 0 | B168: =SUMIF(明細行!C:D,A168,明細行!D:D) -> 0 | C168: 0 | D168: 0
A169: =勘定科目テーブル!F180 -> 0 | B169: =SUMIF(明細行!C:D,A169,明細行!D:D) -> 0 | C169: 0 | D169: 0
A170: =勘定科目テーブル!F181 -> 0 | B170: =SUMIF(明細行!C:D,A170,明細行!D:D) -> 0 | C170: 0 | D170: 0
A171: =勘定科目テーブル!F182 -> 0 | B171: =SUMIF(明細行!C:D,A171,明細行!D:D) -> 0 | C171: 0 | D171: 0
A172: =勘定科目テーブル!F183 -> 0 | B172: =SUMIF(明細行!C:D,A172,明細行!D:D) -> 0 | C172: 0 | D172: 0
A173: =勘定科目テーブル!F184 -> 0 | B173: =SUMIF(明細行!C:D,A173,明細行!D:D) -> 0 | C173: 0 | D173: 0
A174: =勘定科目テーブル!F185 -> 0 | B174: =SUMIF(明細行!C:D,A174,明細行!D:D) -> 0 | C174: 0 | D174: 0
A175: =勘定科目テーブル!F186 -> 0 | B175: =SUMIF(明細行!C:D,A175,明細行!D:D) -> 0 | C175: 0 | D175: 0
A176: =勘定科目テーブル!F187 -> 0 | B176: =SUMIF(明細行!C:D,A176,明細行!D:D) -> 0 | C176: 0 | D176: 0
A177: =勘定科目テーブル!F188 -> 0 | B177: =SUMIF(明細行!C:D,A177,明細行!D:D) -> 0 | C177: 0 | D177: 0
A178: =勘定科目テーブル!F189 -> 0 | B178: =SUMIF(明細行!C:D,A178,明細行!D:D) -> 0 | C178: 0 | D178: 0
A179: =勘定科目テーブル!F190 -> 0 | B179: =SUMIF(明細行!C:D,A179,明細行!D:D) -> 0 | C179: 0 | D179: 0
A180: =勘定科目テーブル!F191 -> 0 | B180: =SUMIF(明細行!C:D,A180,明細行!D:D) -> 0 | C180: 0 | D180: 0
A181: =勘定科目テーブル!F192 -> 0 | B181: =SUMIF(明細行!C:D,A181,明細行!D:D) -> 0 | C181: 0 | D181: 0
A182: =勘定科目テーブル!F193 -> 0 | B182: =SUMIF(明細行!C:D,A182,明細行!D:D) -> 0 | C182: 0 | D182: 0
A183: =勘定科目テーブル!F194 -> 0 | B183: =SUMIF(明細行!C:D,A183,明細行!D:D) -> 0 | C183: 0 | D183: 0
A184: =勘定科目テーブル!F195 -> 0 | B184: =SUMIF(明細行!C:D,A184,明細行!D:D) -> 0 | C184: 0 | D184: 0
A185: =勘定科目テーブル!F196 -> 0 | B185: =SUMIF(明細行!C:D,A185,明細行!D:D) -> 0 | C185: 0 | D185: 0
A186: =勘定科目テーブル!F197 -> 0 | B186: =SUMIF(明細行!C:D,A186,明細行!D:D) -> 0 | C186: 0 | D186: 0
A187: =勘定科目テーブル!F198 -> 0 | B187: =SUMIF(明細行!C:D,A187,明細行!D:D) -> 0 | C187: 0 | D187: 0
A188: =勘定科目テーブル!F199 -> 0 | B188: =SUMIF(明細行!C:D,A188,明細行!D:D) -> 0 | C188: 0 | D188: 0
A189: =勘定科目テーブル!F200 -> 0 | B189: =SUMIF(明細行!C:D,A189,明細行!D:D) -> 0 | C189: 0 | D189: 0
A190: =勘定科目テーブル!F201 -> 0 | B190: =SUMIF(明細行!C:D,A190,明細行!D:D) -> 0 | C190: 0 | D190: 0
A191: =勘定科目テーブル!F202 -> 0 | B191: =SUMIF(明細行!C:D,A191,明細行!D:D) -> 0 | C191: 0 | D191: 0
A192: =勘定科目テーブル!F203 -> 0 | B192: =SUMIF(明細行!C:D,A192,明細行!D:D) -> 0 | C192: =ROUNDDOWN(B192,-3) -> 0 | D192: =C192/1000 -> 0
A193: =勘定科目テーブル!F204 -> 0 | B193: =SUMIF(明細行!C:D,A193,明細行!D:D) -> 0 | C193: 0 | D193: 0
A194: =勘定科目テーブル!F205 -> 0 | B194: =SUMIF(明細行!C:D,A194,明細行!D:D) -> 0 | C194: 0 | D194: 0
A195: =勘定科目テーブル!F206 -> 0 | B195: =SUMIF(明細行!C:D,A195,明細行!D:D) -> 0 | C195: 0 | D195: 0
A196: =勘定科目テーブル!F207 -> 0 | B196: =SUMIF(明細行!C:D,A196,明細行!D:D) -> 0 | C196: 0 | D196: 0
A197: =勘定科目テーブル!F208 -> 0 | B197: =SUMIF(明細行!C:D,A197,明細行!D:D) -> 0 | C197: 0 | D197: 0
A198: =勘定科目テーブル!F209 -> 0 | B198: =SUMIF(明細行!C:D,A198,明細行!D:D) -> 0 | C198: 0 | D198: 0
A199: =勘定科目テーブル!F210 -> 0 | B199: =SUMIF(明細行!C:D,A199,明細行!D:D) -> 0 | C199: 0 | D199: 0
A200: =勘定科目テーブル!F211 -> 0 | B200: =SUMIF(明細行!C:D,A200,明細行!D:D) -> 0 | C200: 0 | D200: 0
... 8 more rows

Sheet 勘定科目照合シート (hidden)
